Workbook

Sheet 明细表
B1: 萧县2023年巩固拓展脱贫攻坚成果和乡村振兴项目库
A2: 序号 | B2: 项目类别 | C2: 项目名称 | D2: 建设 性质 | E2: 主管部门 | F2: 实施单位和责任人 | G2: 项目实施地点 | J2: 建设任务（内容及规模） | K2: 时间进度 (完成时限） | L2: 预计投资 | M2: 其中： | O2: 项目年度总目标 | P2: 绩效目标 | AB2: 群众参与 | AC2: 联农带农机制
P3: 产出指标 | T3: 效益指标 | AA3: 满意度指标（受益人口满意度）
M4: 财政资金 | N4: 其他资金 | T4: 经济效益指标 | W4: 社会效益指标 | Y4: 生态效益指标 | Z4: 可持续影响指标
G5: 乡镇 | H5: 行政村 | I5: 是否 出列村 | P5: 数量指标 | Q5: 质量指标（验收合格率） | R5: 时效指标（完工及时率） | S5: 成本指标 | T5: 带动脱贫户经济总收入 | U5: 资产股权年收益率 | V5: 受益劳动者经济总收入 | W5: 受益户数 | X5: 受益人数
B6: 合计 | L6: =L7+L329+L331+L623+L627+L629 -> 159868.2953 | M6: 128917.8453 | N6: 30950.45
B7: 一、产业发展 | L7: =L8+L261 -> 81888.9053 | M7: 58188.9053 | N7: 23700
B8: （一）生产项目 | L8: =SUM(L9:L260) -> 1910.0053 | M8: =SUM(M9:M260) -> 1910.0053
A9: 1 | B9: 生产项目（种植/养殖业） | C9: 2023年白土镇孤山村特色种养殖补贴到户项目 | D9: 新建 | E9: 县农业农村局 | F9: 白土镇 魏东 | G9: 白土镇 | H9: 孤山村 | I9: 否 | J9: 扶持25户脱贫户（含监测对象）发展特色种养业 | K9: 2023年12月15日前 | L9: 3.75 | M9: 3.75 | O9: 扶持25户脱贫户发展特色种养业，鼓励其扩大种养殖规模。 | P9: 瓜果蔬菜种植面积约25亩，养殖羊数量96只，蜜蜂20箱。 | Q9: 100% | R9: 100% | S9: / | T9: 8.292 | U9: / | V9: / | W9: 25 | X9: 49 | AA9: ≥95% | AB9: 参与项目申报、实施过程监督、完成后受益 | AC9: 以产业补助的形式对脱贫户进行补助，鼓励发展特色产业，激发脱贫人口内生动力，扩大种养殖规模，增加脱贫户收入
A10: 2 | B10: 生产项目（种植/养殖业） | C10: 2023年白土镇花甲寺村特色种养殖补贴到户项目 | D10: 新建 | E10: 县农业农村局 | F10: 白土镇 魏东 | G10: 白土镇 | H10: 花甲寺村 | I10: 否 | J10: 扶持6户脱贫户（含监测对象）发展特色种养业 | K10: 2023年12月15日前 | L10: 0.9 | M10: 0.9 | O10: 扶持6户脱贫户发展特色种养业鼓励其扩大种养殖规模。 | P10: 种植果树面积约2亩，养殖羊数量10只中药材4亩，蔬菜大棚2亩。 | Q10: 100% | R10: 100% | S10: / | T10: 1.5 | U10: / | V10: / | W10: 6 | X10: 11 | AA10: ≥95% | AB10: 参与项目申报、实施过程监督、完成后受益 | AC10: 以产业补助的形式对脱贫户进行补助，鼓励发展特色产业，激发脱贫人口内生动力，扩大种养殖规模，增加脱贫户收入
A11: 3 | B11: 生产项目（种植/养殖业） | C11: 2023年白土镇董店村特色种养殖补贴到户项目 | D11: 新建 | E11: 县农业农村局 | F11: 白土镇 魏东 | G11: 白土镇 | H11: 董店村 | I11: 否 | J11: 扶持17户脱贫户（含监测对象）发展特色种养业 | K11: 2023年12月15日前 | L11: 2.55 | M11: 2.55 | O11: 扶持17户脱贫户发展特色种养业鼓励其扩大种养殖规模。 | P11: 瓜果蔬菜种植5.4亩，羊养殖数量90只。 | Q11: 100% | R11: 100% | S11: / | T11: 5.1 | U11: / | W11: 17 | X11: 110 | AA11: ≥95% | AB11: 参与项目申报、实施过程监督、完成后受益 | AC11: 以产业补助的形式对脱贫户进行补助，鼓励发展特色产业，激发脱贫人口内生动力，扩大种养殖规模，增加脱贫户收入
A12: 4 | B12: 生产项目（种植/养殖业） | C12: 2023年白土镇费村社区特色种养殖补贴到户项目 | D12: 新建 | E12: 县农业农村局 | F12: 白土镇 魏东 | G12: 白土镇 | H12: 费村社区 | I12: 否 | J12: 扶持2户脱贫户（含监测对象）发展特色种养业 | K12: 2023年12月15日前 | L12: 0.3 | M12: 0.3 | O12: 扶持2户脱贫户发展特色种养业，鼓励其扩大种养殖规模。 | P12: 种植面积3亩，养殖羊数量10只。 | Q12: 100% | R12: 100% | S12: / | T12: 0.69 | U12: / | V12: / | W12: 2 | X12: 6 | AA12: ≥95% | AB12: 参与项目申报、实施过程监督、完成后受益 | AC12: 以产业补助的形式对脱贫户进行补助，鼓励发展特色产业，激发脱贫人口内生动力，扩大种养殖规模，增加脱贫户收入
A13: 5 | B13: 生产项目（种植/养殖业） | C13: 2023年白土镇白土社区特色种养殖补贴到户项目 | D13: 新建 | E13: 县农业农村局 | F13: 白土镇 魏东 | G13: 白土镇 | H13: 白土社区 | I13: 是 | J13: 扶持6户脱贫户（含监测对象）发展特色种养业 | K13: 2023年12月15日前 | L13: 0.9 | M13: 0.9 | O13: 扶持6户脱贫户发展特色种养业，鼓励其扩大种养殖规模。 | P13: 养殖羊数量50只，养殖鸡500只。 | Q13: 100% | R13: 100% | S13: / | T13: 2.250 | U13: / | V13: / | W13: 6 | X13: 15 | AA13: ≥95% | AB13: 参与项目申报、实施过程监督、完成后受益 | AC13: 以产业补助的形式对脱贫户进行补助，鼓励发展特色产业，激发脱贫人口内生动力，扩大种养殖规模，增加脱贫户收入
A14: 6 | B14: 生产项目（种植/养殖业） | C14: 2023年白土镇张村特色种养殖补贴到户项目 | D14: 新建 | E14: 县农业农村局 | F14: 白土镇 魏东 | G14: 白土镇 | H14: 张村 | I14: 是 | J14: 扶持48户脱贫户（含监测对象）发展特色种养业 | K14: 2023年12月15日前 | L14: 7.2 | M14: 7.2 | O14: 扶持48户脱贫户发展特色种养业，鼓励其扩大种养殖规模。 | P14: 经济作物种植面积62.9亩，瓜果蔬菜种植面积15亩，羊养殖数量382只。 | Q14: 100% | R14: 100% | S14: / | T14: 18.600 | U14: / | V14: / | W14: 48 | X14: 90 | AA14: ≥95% | AB14: 参与项目申报、实施过程监督、完成后受益 | AC14: 以产业补助的形式对脱贫户进行补助，鼓励发展特色产业，激发脱贫人口内生动力，扩大种养殖规模，增加脱贫户收入
A15: 7 | B15: 生产项目（种植/养殖业） | C15: 2023年大屯镇郭阁村特色种养殖补贴到户项目 | D15: 新建 | E15: 县农业农村局 | F15: 大屯镇 刘文芝 | G15: 大屯镇 | H15: 郭阁村 | I15: 否 | J15: 扶持97户脱贫户（含监测对象）发展特色种养业 | K15: 2023年12月15日前 | L15: 13.76 | M15: 13.76 | O15: 扶持97户脱贫户发展特色种养业，鼓励其扩大种养殖规模。 | P15: 羊养殖数量670只，猪养殖数量219头， | Q15: 100% | R15: 100% | S15: / | T15: 16.512 | U15: / | V15: / | W15: 97 | X15: 220 | AA15: ≥95% | AB15: 参与项目申报、实施过程监督、完成后受益 | AC15: 以产业补助的形式对脱贫户进行补助，鼓励发展特色产业，激发脱贫人口内生动力，扩大种养殖规模，增加脱贫户收入
A16: 8 | B16: 生产项目（种植/养殖业） | C16: 2023年大屯镇高楼村特色种养殖补贴到户项目 | D16: 新建 | E16: 县农业农村局 | F16: 大屯镇 刘文芝 | G16: 大屯镇 | H16: 高楼村 | I16: 否 | J16: 扶持52户脱贫户（含监测对象）发展特色种养业 | K16: 2023年12月15日前 | L16: 7.34 | M16: 7.34 | O16: 扶持52户脱贫户发展特色种养业，鼓励其扩大种养殖规模。 | P16: 瓜果蔬菜种植面积66亩，羊养殖数量430只，猪养殖数量62头 | Q16: 100% | R16: 100% | T16: 8.808 | U16: / | V16: / | W16: 52 | X16: 137 | AA16: ≥95% | AB16: 参与项目申报、实施过程监督、完成后受益 | AC16: 以产业补助的形式对脱贫户进行补助，鼓励发展特色产业，激发脱贫人口内生动力，扩大种养殖规模，增加脱贫户收入
A17: 9 | B17: 生产项目（种植/养殖业） | C17: 2023年大屯镇关庄村特色种养殖补贴到户项目 | D17: 新建 | E17: 县农业农村局 | F17: 大屯镇 刘文芝 | G17: 大屯镇 | H17: 关庄村 | I17: 是 | J17: 扶40户脱贫户（含监测对象）发展特色种养业 | K17: 2023年12月15日前 | L17: 5.655 | M17: 5.655 | O17: 扶持40户脱贫户发展特色种养业，鼓励其扩大种养殖规模。 | P17: 瓜果蔬菜种植面积11亩，羊养殖数量284只，猪养殖数量14头，鱼塘养殖3亩。 | Q17: 100% | R17: 100% | T17: 6.786 | U17: / | V17: / | W17: 40 | X17: 89 | AA17: ≥95% | AB17: 参与项目申报、实施过程监督、完成后受益 | AC17: 以产业补助的形式对脱贫户进行补助，鼓励发展特色产业，激发脱贫人口内生动力，扩大种养殖规模，增加脱贫户收入
A18: 10 | B18: 生产项目（种植/养殖业） | C18: 2023年大屯镇土山村特色种养殖补贴到户项目 | D18: 新建 | E18: 县农业农村局 | F18: 大屯镇 刘文芝 | G18: 大屯镇 | H18: 土山村 | I18: 否 | J18: 扶持20户脱贫户（含监测对象）发展特色种养业 | K18: 2023年12月15日前 | L18: 2.99 | M18: 2.99 | O18: 扶持20户脱贫户发展特色种养业，鼓励其扩大种养殖规模。 | P18: 瓜果蔬菜种植面积37亩，羊养殖数量154只，猪养殖数量60头 | Q18: 100% | R18: 100% | S18: / | T18: 3.588 | U18: / | V18: / | W18: 20 | X18: 55 | AA18: ≥95% | AB18: 参与项目申报、实施过程监督、完成后受益 | AC18: 以产业补助的形式对脱贫户进行补助，鼓励发展特色产业，激发脱贫人口内生动力，扩大种养殖规模，增加脱贫户收入
A19: 11 | B19: 生产项目（种植/养殖业） | C19: 2023年大屯镇南海村特色种养殖补贴到户项目 | D19: 新建 | E19: 县农业农村局 | F19: 大屯镇 刘文芝 | G19: 大屯镇 | H19: 南海村 | I19: 是 | J19: 扶持53户脱贫户（含监测对象）发展特色种养业 | K19: 2023年12月15日前 | L19: 7.41 | M19: 7.41 | O19: 扶持53户脱贫户发展特色种养业，鼓励其扩大种养殖规模。 | P19: 瓜果蔬菜种植面积39亩，羊养殖数量309只，猪养殖数量46头，鸡养殖数量300羽 | Q19: 100% | R19: 100% | S19: / | T19: 8.892 | U19: / | V19: / | W19: 53 | X19: 131 | AA19: ≥95% | AB19: 参与项目申报、实施过程监督、完成后受益 | AC19: 以产业补助的形式对脱贫户进行补助，鼓励发展特色产业，激发脱贫人口内生动力，扩大种养殖规模，增加脱贫户收入
A20: 12 | B20: 生产项目（种植/养殖业） | C20: 2023年大屯镇胡集村特色种养殖补贴到户项目 | D20: 新建 | E20: 县农业农村局 | F20: 大屯镇 刘文芝 | G20: 大屯镇 | H20: 胡集村 | I20: 否 | J20: 扶持60户脱贫户（含监测对象）发展特色种养业 | K20: 2023年12月15日前 | L20: 8.39 | M20: 8.39 | O20: 扶持60户脱贫户发展特色种养业，鼓励其扩大种养殖规模。 | P20: 瓜果蔬菜种植面积2亩，羊养殖数量390只，猪养殖数量20头 | Q20: 100% | R20: 100% | S20: / | T20: 10.068 | U20: / | V20: / | W20: 60 | X20: 123 | AA20: ≥95% | AB20: 参与项目申报、实施过程监督、完成后受益 | AC20: 以产业补助的形式对脱贫户进行补助，鼓励发展特色产业，激发脱贫人口内生动力，扩大种养殖规模，增加脱贫户收入
A21: 13 | B21: 生产项目（种植/养殖业） | C21: 2023年大屯镇瓦房村特色种养殖补贴到户项目 | D21: 新建 | E21: 县农业农村局 | F21: 大屯镇 刘文芝 | G21: 大屯镇 | H21: 瓦房村 | I21: 是 | J21: 扶持105户脱贫户（含监测对象）发展特色种养业 | K21: 2023年12月15日前 | L21: 15.57 | M21: 15.57 | O21: 扶持105户脱贫户发展特色种养业，鼓励其扩大种养殖规模。 | P21: 瓜果蔬菜种植面积64.2亩，羊养殖数量537只，猪养殖数量67头，牛养殖数量11头，鹅养殖数量6000百羽，鹌鹑养殖数量4000百羽 | Q21: 100% | R21: 100% | S21: / | T21: 18.684 | U21: / | V21: / | W21: 105 | X21: 267 | AA21: ≥95% | AB21: 参与项目申报、实施过程监督、完成后受益 | AC21: 以产业补助的形式对脱贫户进行补助，鼓励发展特色产业，激发脱贫人口内生动力，扩大种养殖规模，增加脱贫户收入
A22: 14 | B22: 生产项目（种植/养殖业） | C22: 2023年大屯镇大屯村特色种养殖补贴到户项目 | D22: 新建 | E22: 县农业农村局 | F22: 大屯镇 刘文芝 | G22: 大屯镇 | H22: 大屯村 | I22: 是 | J22: 扶持54户脱贫户（含监测对象）发展特色种养业 | K22: 2023年12月15日前 | L22: 7.72 | M22: 7.72 | O22: 扶持54户脱贫户发展特色种养业，鼓励其扩大种养殖规模。 | P22: 瓜果蔬菜种植面积3.5亩，羊养殖数量350只，猪养殖数量32头 | Q22: 100% | R22: 100% | S22: / | T22: 9.264 | U22: / | V22: / | W22: 54 | X22: 110 | AA22: ≥95% | AB22: 参与项目申报、实施过程监督、完成后受益 | AC22: 以产业补助的形式对脱贫户进行补助，鼓励发展特色产业，激发脱贫人口内生动力，扩大种养殖规模，增加脱贫户收入
A23: 15 | B23: 生产项目（种植/养殖业） | C23: 2023年大屯镇张楼村特色种养殖补贴到户项目 | D23: 新建 | E23: 县农业农村局 | F23: 大屯镇 刘文芝 | G23: 大屯镇 | H23: 张楼村 | I23: 否 | J23: 扶持57户脱贫户（含监测对象）发展特色种养业 | K23: 2023年12月15日前 | L23: 8.07 | M23: 8.07 | O23: 扶持57户脱贫户发展特色种养业，鼓励其扩大种养殖规模。 | P23: 瓜果蔬菜种植面积46亩，羊养殖数量298只，猪养殖数量17头，禽类6300羽 | Q23: 100% | R23: 100% | S23: / | T23: 9.684 | U23: / | V23: / | W23: 57 | X23: 176 | AA23: ≥95% | AB23: 参与项目申报、实施过程监督、完成后受益 | AC23: 以产业补助的形式对脱贫户进行补助，鼓励发展特色产业，激发脱贫人口内生动力，扩大种养殖规模，增加脱贫户收入
A24: 16 | B24: 生产项目（种植/养殖业） | C24: 2023年大屯镇付庄村特色种养殖补贴到户项目 | D24: 新建 | E24: 县农业农村局 | F24: 大屯镇 刘文芝 | G24: 大屯镇 | H24: 付庄村 | I24: 否 | J24: 扶持104户脱贫户（含监测对象）发展特色种养业 | K24: 2023年12月15日前 | L24: 15.34 | M24: 15.34 | O24: 扶持104户脱贫户发展特色种养业，鼓励其扩大种养殖规模。 | P24: 瓜果蔬菜种植面积4亩，羊养殖数量676只，猪养殖数量20头 | Q24: 100% | R24: 100% | S24: / | T24: 18.408 | U24: / | V24: / | W24: 104 | X24: 297 | AA24: ≥95% | AB24: 参与项目申报、实施过程监督、完成后受益 | AC24: 以产业补助的形式对脱贫户进行补助，鼓励发展特色产业，激发脱贫人口内生动力，扩大种养殖规模，增加脱贫户收入
A25: 17 | B25: 生产项目（种植/养殖业） | C25: 2023年大屯镇许楼村特色种养殖补贴到户项目 | D25: 新建 | E25: 县农业农村局 | F25: 大屯镇 刘文芝 | G25: 大屯镇 | H25: 许楼村 | I25: 否 | J25: 扶持92户脱贫户（含监测对象）发展特色种养业 | K25: 2023年12月15日前 | L25: 13.225 | M25: 13.225 | O25: 扶持92户脱贫户发展特色种养业，鼓励其扩大种养殖规模。 | P25: 瓜果蔬菜种植面积9亩，羊养殖数量525只，猪养殖数量102头 | Q25: 100% | R25: 100% | S25: / | T25: 15.87 | U25: / | V25: / | W25: 92 | X25: 211 | AA25: ≥95% | AB25: 参与项目申报、实施过程监督、完成后受益 | AC25: 以产业补助的形式对脱贫户进行补助，鼓励发展特色产业，激发脱贫人口内生动力，扩大种养殖规模，增加脱贫户收入
A26: 18 | B26: 生产项目（种植/养殖业） | C26: 2023年大屯镇林楼村特色种养殖补贴到户项目 | D26: 新建 | E26: 县农业农村局 | F26: 大屯镇 刘文芝 | G26: 大屯镇 | H26: 林楼村 | I26: 否 | J26: 扶持71户脱贫户（含监测对象）发展特色种养业 | K26: 2023年12月15日前 | L26: 10.31 | M26: 10.31 | O26: 扶持71户脱贫户发展特色种养业，鼓励其扩大种养殖规模。 | P26: 瓜果蔬菜种植面积10亩，羊养殖数量498只，猪养殖数量8头，鱼养殖面积15亩，经济作物种植面积2亩 | Q26: 100% | R26: 100% | S26: / | T26: 12.372 | U26: / | V26: / | W26: 71 | X26: 187 | AA26: ≥95% | AB26: 参与项目申报、实施过程监督、完成后受益 | AC26: 以产业补助的形式对脱贫户进行补助，鼓励发展特色产业，激发脱贫人口内生动力，扩大种养殖规模，增加脱贫户收入
A27: 19 | B27: 生产项目（种植/养殖业） | C27: 2023年丁里镇张山头村特色种养殖补贴到户项目 | D27: 新建 | E27: 县农业农村局 | F27: 丁里镇 谷海粟 | G27: 丁里镇 | H27: 张山头村 | I27: 是 | J27: 扶持49户脱贫户（含监测对象）发展特色种养业 | K27: 2023年12月15日前 | L27: 5.46 | M27: 5.46 | O27: 扶持49户脱贫户发展特色种养业，鼓励其扩大种养殖规模。 | P27: 蔬菜种植面积31.87亩，羊养殖数量99只.牛1只 | Q27: 100% | R27: 100% | S27: / | T27: 11.2 | U27: / | V27: / | W27: 49 | X27: 117 | AA27: ≥95% | AB27: 参与项目申报、实施过程监督、完成后受益 | AC27: 以产业补助的形式对脱贫户进行补助，鼓励发展特色产业，激发脱贫人口内生动力，扩大种养殖规模，增加脱贫户收入
A28: 20 | B28: 生产项目（种植/养殖业） | C28: 2023年丁里镇河头村特色种养业补助到户项目 | D28: 新建 | E28: 县农业农村局 | F28: 丁里镇 谷海粟 | G28: 丁里镇 | H28: 河头村 | I28: 是 | J28: 扶持75户脱贫户（含监测对象）发展特色种养业 | K28: 2023年12月15日前 | L28: 9.44 | M28: 9.44 | O28: 扶持75户脱贫户发展特色种养业，鼓励其扩大种养殖规模。 | P28: 蔬菜种植面积123亩，羊养殖数量180只，牛1头 | Q28: 100% | R28: 100% | S28: / | T28: 22.5 | U28: / | W28: 75 | X28: 179 | AA28: ≥95% | AB28: 参与项目申报、实施过程监督、完成后受益 | AC28: 以产业补助的形式对脱贫户进行补助，鼓励发展特色产业，激发脱贫人口内生动力，扩大种养殖规模，增加脱贫户收入
A29: 21 | B29: 生产项目（种植/养殖业） | C29: 2023年丁里镇梁庄社区特色种养业补助到户项目 | D29: 新建 | E29: 县农业农村局 | F29: 丁里镇 谷海粟 | G29: 丁里镇 | H29: 梁庄社区 | I29: 否 | J29: 扶持10户脱贫户（含监测对象）发展特色种养业 | K29: 2023年12月15日前 | L29: 1.062 | M29: 1.062 | O29: 扶持10户脱贫户发展特色种养业，鼓励其扩大种养殖规模。 | P29: 蔬菜种植面积2亩，羊养殖数量6只，果树种植8.4亩，豌豆4亩 | Q29: 100% | R29: 100% | S29: / | T29: 2.1 | U29: / | W29: 10 | X29: 22 | AA29: ≥95% | AB29: 参与项目申报、实施过程监督、完成后受益 | AC29: 以产业补助的形式对脱贫户进行补助，鼓励发展特色产业，激发脱贫人口内生动力，扩大种养殖规模，增加脱贫户收入
A30: 22 | B30: 生产项目（种植/养殖业） | C30: 2023年丁里镇瓦子口村特色种养业补助到户项目 | D30: 新建 | E30: 县农业农村局 | F30: 丁里镇 谷海粟 | G30: 丁里镇 | H30: 瓦子口村 | I30: 否 | J30: 扶持28户脱贫户（含监测对象）发展特色种养业 | K30: 2023年12月15日前 | L30: 3.998 | M30: 3.998 | O30: 扶持28户脱贫户发展特色种养业，鼓励其扩大种养殖规模。 | P30: 种植杏树24.4亩，种植黏玉米面积6.2亩，养殖羊数量102只。 | Q30: 100% | R30: 100% | S30: / | T30: 6 | U30: / | W30: 28 | X30: 68 | AA30: ≥95% | AB30: 参与项目申报、实施过程监督、完成后受益 | AC30: 以产业补助的形式对脱贫户进行补助，鼓励发展特色产业，激发脱贫人口内生动力，扩大种养殖规模，增加脱贫户收入
A31: 23 | B31: 生产项目（种植/养殖业） | C31: 2023年丁里镇武寺村特色种养业补助到户项目 | D31: 新建 | E31: 县农业农村局 | F31: 丁里镇 谷海粟 | G31: 丁里镇 | H31: 武寺村 | I31: 否 | J31: 扶持44户脱贫户发展特色种养业 | K31: 2023年12月15日前 | L31: 4.5 | M31: 4.5 | O31: 扶持44户脱贫户发展特色种养业，鼓励其扩大种养殖规模。 | P31: 蔬菜种植面积60亩，果树种植面积5亩，羊养殖数量58只，牛2头，猪养殖数量6头， | Q31: 100% | R31: 100% | S31: / | T31: 10 | U31: / | W31: 44 | X31: 97 | AA31: ≥95% | AB31: 参与项目申报、实施过程监督、完成后受益 | AC31: 以产业补助的形式对脱贫户进行补助，鼓励发展特色产业，激发脱贫人口内生动力，扩大种养殖规模，增加脱贫户收入
A32: 24 | B32: 生产项目（种植/养殖业） | C32: 2023年丁里镇许堂社区特色种养业补助到户项目 | D32: 新建 | E32: 县农业农村局 | F32: 丁里镇 谷海粟 | G32: 丁里镇 | H32: 许堂社区 | I32: 否 | J32: 扶持46户脱贫户（含监测对象）发展特色种养业 | K32: 2023年12月15日前 | L32: 4.71 | M32: 4.71 | O32: 扶持46户脱贫户发展特色种养业，鼓励其扩大种养殖规模。 | P32: 蔬菜种植面积39亩，羊养殖数量156只，猪3头，家禽260只 | Q32: 100% | R32: 100% | S32: / | T32: 13.8 | U32: / | W32: 46 | X32: 96 | AA32: ≥95% | AB32: 参与项目申报、实施过程监督、完成后受益 | AC32: 以产业补助的形式对脱贫户进行补助，鼓励发展特色产业，激发脱贫人口内生动力，扩大种养殖规模，增加脱贫户收入
A33: 25 | B33: 生产项目（种植/养殖业） | C33: 2023年丁里镇丁里社区特色种养业补助到户项目 | D33: 新建 | E33: 县农业农村局 | F33: 丁里镇 谷海粟 | G33: 丁里镇 | H33: 丁里社区 | I33: 是 | J33: 扶持25户脱贫户（含监测对象）发展特色种养业 | K33: 2023年12月15日前 | L33: 3.086 | M33: 3.086 | O33: 扶持25户脱贫户发展特色种养业，鼓励其扩大种养殖规模。 | P33: 蔬菜种植面积16.5亩，葡萄2.2亩种植羊养殖数量93只 | Q33: 100% | R33: 100% | S33: / | T33: 6.1 | U33: / | W33: 25 | X33: 46 | AA33: ≥95% | AB33: 参与项目申报、实施过程监督、完成后受益 | AC33: 以产业补助的形式对脱贫户进行补助，鼓励发展特色产业，激发脱贫人口内生动力，扩大种养殖规模，增加脱贫户收入
A34: 26 | B34: 生产项目（种植/养殖业） | C34: 2023年丁里镇胜利社区特色种养业补助到户项目 | D34: 新建 | E34: 县农业农村局 | F34: 丁里镇 谷海粟 | G34: 丁里镇 | H34: 胜利社区 | I34: 否 | J34: 扶持12户脱贫户发展特色种养业 | K34: 2023年12月15日前 | L34: 1.786 | M34: 1.786 | O34: 扶持12户脱贫户发展特色种养业，鼓励其扩大种养殖规模。 | P34: 羊养殖数量60只，猪养殖数量3只，水果（桃树）1.7亩 | Q34: 100% | R34: 100% | S34: / | T34: 3.6 | U34: / | W34: 12 | X34: 22 | AA34: ≥95% | AB34: 参与项目申报、实施过程监督、完成后受益 | AC34: 以产业补助的形式对脱贫户进行补助，鼓励发展特色产业，激发脱贫人口内生动力，扩大种养殖规模，增加脱贫户收入
A35: 27 | B35: 生产项目（种植/养殖业） | C35: 2023年丁里镇郭庄社区特色种养业补助到户项目 | D35: 新建 | E35: 县农业农村局 | F35: 丁里镇 谷海粟 | G35: 丁里镇 | H35: 郭庄社区 | I35: 否 | J35: 扶持26户脱贫户（含监测对象）发展特色种养业 | K35: 2023年12月15日前 | L35: 3.08 | M35: 3.08 | O35: 扶持26户脱贫户发展特色种养业，鼓励其扩大种养殖规模。 | P35: 蔬菜种植面积7亩，果树种植面积8.3亩，羊养殖数量113只，猪养殖数量3头 | Q35: 100% | R35: 100% | S35: / | T35: 6.2 | U35: / | W35: 26 | X35: 50 | AA35: ≥95% | AB35: 参与项目申报、实施过程监督、完成后受益 | AC35: 以产业补助的形式对脱贫户进行补助，鼓励发展特色产业，激发脱贫人口内生动力，扩大种养殖规模，增加脱贫户收入
A36: 28 | B36: 生产项目（种植/养殖业） | C36: 2023年杜楼镇郝庄寨村特色种养殖补贴到户项目 | D36: 新建 | E36: 县农业农村局 | F36: 杜楼镇 许剑 | G36: 杜楼镇 | H36: 郝庄寨村 | I36: 否 | J36: 扶持55户脱贫户（含监测对象）发展特色种养业 | K36: 2023年12月15日前 | L36: 6.95 | M36: 6.95 | O36: 扶持55户脱贫户发展特色种养业，鼓励其扩大种养殖规模。 | P36: 羊养殖数量320只，猪养殖数量11头，鱼塘18亩 | Q36: 100% | R36: 100% | S36: / | T36: 8.5 | U36: / | V36: / | W36: 55 | X36: 135 | AA36: ≥95% | AB36: 参与项目申报、实施过程监督、完成后受益 | AC36: 以产业补助的形式对脱贫户进行补助，鼓励发展特色产业，激发脱贫人口内生动力，扩大种养殖规模，增加脱贫户收入
A37: 29 | B37: 生产项目（种植/养殖业） | C37: 2023年杜楼镇马阁村特色种养殖补贴到户项目 | D37: 新建 | E37: 县农业农村局 | F37: 杜楼镇 许剑 | G37: 杜楼镇 | H37: 马阁村 | I37: 否 | J37: 扶持8户脱贫户（含监测对象）发展特色种养业 | K37: 2023年12月15日前 | L37: 1.13 | M37: 1.13 | O37: 扶持8户脱贫户发展特色种养业，鼓励其扩大种养殖规模。 | P37: 羊养殖数量73只 | Q37: 100% | R37: 100% | S37: / | T37: 2.5 | U37: / | V37: / | W37: 8 | X37: 23 | AA37: ≥95% | AB37: 参与项目申报、实施过程监督、完成后受益 | AC37: 以产业补助的形式对脱贫户进行补助，鼓励发展特色产业，激发脱贫人口内生动力，扩大种养殖规模，增加脱贫户收入
A38: 30 | B38: 生产项目（种植/养殖业） | C38: 2023年杜楼镇彭村特色种养殖补贴到户项目 | D38: 新建 | E38: 县农业农村局 | F38: 杜楼镇 许剑 | G38: 杜楼镇 | H38: 彭村 | I38: |否 | J38: 扶持20户脱贫户（含监测对象）发展特色种养业 | K38: 2023年12月15日前 | L38: 2.67 | M38: 2.67 | O38: 扶持20户脱贫户发展特色种养业，鼓励其扩大种养殖规模。 | P38: 瓜果蔬菜种植面积0亩，羊养殖数量154只，猪养殖数量0头，经济作物种植面积亩 | Q38: 100% | R38: 100% | S38: / | T38: 3.7 | U38: / | V38: / | W38: 20 | X38: 54 | AA38: ≥95% | AB38: 参与项目申报、实施过程监督、完成后受益 | AC38: 以产业补助的形式对脱贫户进行补助，鼓励发展特色产业，激发脱贫人口内生动力，扩大种养殖规模，增加脱贫户收入
A39: 31 | B39: 生产项目（种植/养殖业） | C39: 2023年杜楼镇郝新庄村特色种养殖补贴到户项目 | D39: 新建 | E39: 县农业农村局 | F39: 杜楼镇 许剑 | G39: 杜楼镇 | H39: 郝新庄村 | I39: 否 | J39: 扶持49户脱贫户（含监测对象）发展特色种养业 | K39: 2023年12月15日前 | L39: 6.14 | M39: 6.14 | O39: 扶持49户脱贫户发展特色种养业，鼓励其扩大种养殖规模。 | P39: 瓜果蔬菜种植面积34亩，羊养殖数量188只，猪养殖数量82头，经济作物种植面积24亩 | Q39: 100% | R39: 100% | S39: / | T39: 9.1 | U39: / | V39: / | W39: 49 | X39: 102 | AA39: ≥95% | AB39: 参与项目申报、实施过程监督、完成后受益 | AC39: 以产业补助的形式对脱贫户进行补助，鼓励发展特色产业，激发脱贫人口内生动力，扩大种养殖规模，增加脱贫户收入
A40: 32 | B40: 生产项目（种植/养殖业） | C40: 2023年杜楼镇杜庄村特色种养殖补贴到户项目 | D40: 新建 | E40: 县农业农村局 | F40: 杜楼镇 许剑 | G40: 杜楼镇 | H40: 杜庄村 | I40: |否 | J40: 扶持7户脱贫户（含监测对象）发展特色种养业 | K40: 2023年12月15日前 | L40: 1.05 | M40: 1.05 | O40: 扶持7户脱贫户发展特色种养业，鼓励其扩大种养殖规模。 | P40: 羊养殖数量64只 | Q40: 100% | R40: 100% | S40: / | T40: 2.6 | U40: / | V40: / | W40: 7 | X40: 19 | AA40: ≥95% | AB40: 参与项目申报、实施过程监督、完成后受益 | AC40: 以产业补助的形式对脱贫户进行补助，鼓励发展特色产业，激发脱贫人口内生动力，扩大种养殖规模，增加脱贫户收入
A41: 33 | B41: 生产项目（种植/养殖业） | C41: 2023年杜楼镇业庄村特色种养殖补贴到户项目 | D41: 新建 | E41: 县农业农村局 | F41: 杜楼镇 许剑 | G41: 杜楼镇 | H41: 业庄村 | I41: 是 | J41: 扶持76户脱贫户（含监测对象）发展特色种养业 | K41: 2023年12月15日前 | L41: 10.4365 | M41: 10.4365 | O41: 扶持76户脱贫户发展特色种养业，鼓励其扩大种养殖规模。 | P41: 瓜果蔬菜种植面积38.9亩，羊养殖数量435只，猪养殖数量60头。 | Q41: 100% | R41: 100% | S41: / | T41: 12 | U41: / | V41: / | W41: 76 | X41: 171 | AA41: ≥95% | AB41: 参与项目申报、实施过程监督、完成后受益 | AC41: 以产业补助的形式对脱贫户进行补助，鼓励发展特色产业，激发脱贫人口内生动力，扩大种养殖规模，增加脱贫户收入
A42: 34 | B42: 生产项目（种植/养殖业） | C42: 2023年杜楼镇杜集村特色种养殖补贴到户项目 | D42: 新建 | E42: 县农业农村局 | F42: 杜楼镇 许剑 | G42: 杜楼镇 | H42: 杜集村 | I42: 否 | J42: 扶持34户脱贫户（含监测对象）发展特色种养业 | K42: 2023年12月15日前 | L42: 4.956 | M42: 4.956 | O42: 扶持34户脱贫户发展特色种养业，鼓励其扩大种养殖规模。 | P42: 瓜果蔬菜种植面积4.8亩，羊养殖数量321只，猪养殖数量10头. | Q42: 100% | R42: 100% | S42: / | T42: 11 | U42: / | V42: / | W42: 34 | X42: 84 | AA42: ≥95% | AB42: 参与项目申报、实施过程监督、完成后受益 | AC42: 以产业补助的形式对脱贫户进行补助，鼓励发展特色产业，激发脱贫人口内生动力，扩大种养殖规模，增加脱贫户收入
A43: 35 | B43: 生产项目（种植/养殖业） | C43: 2023年杜楼镇曹庄村特色种养殖补贴到户项目 | D43: 新建 | E43: 县农业农村局 | F43: 杜楼镇 许剑 | G43: 杜楼镇 | H43: 曹庄村村 | I43: 是 | J43: 扶持26户脱贫户（含监测对象）发展特色种养业 | K43: 2023年12月15日前 | L43: 3.9 | M43: 3.9 | O43: 扶持26户脱贫户发展特色种养业，鼓励其扩大种养殖规模。 | P43: 瓜果蔬菜种植面积128亩，羊养殖数量17只，猪养殖数量26头，经济作物种植面积亩 | Q43: 100% | R43: 100% | S43: / | T43: 5.3 | U43: / | V43: / | W43: 26 | X43: 66 | AA43: ≥95% | AB43: 参与项目申报、实施过程监督、完成后受益 | AC43: 以产业补助的形式对脱贫户进行补助，鼓励发展特色产业，激发脱贫人口内生动力，扩大种养殖规模，增加脱贫户收入
A44: 36 | B44: 生产项目（种植/养殖业） | C44: 2023年杜楼镇小圩子村特色种养殖补贴到户项目 | D44: 新建 | E44: 县农业农村局 | F44: 杜楼镇 许剑 | G44: 杜楼镇 | H44: 小圩子村 | I44: 否 | J44: 扶持24户脱贫户（含监测对象）发展特色种养业 | K44: 2023年12月15日前 | L44: 3.57 | M44: 3.57 | O44: 扶持24户脱贫户发展特色种养业，鼓励其扩大种养殖规模。 | P44: 瓜果蔬菜种植面积5.2亩，羊养殖数量195只，猪养殖数量8头，经济作物种植面积亩 | Q44: 100% | R44: 100% | S44: / | T44: 5.91 | U44: / | V44: / | W44: 24 | X44: 46 | AA44: ≥95% | AB44: 参与项目申报、实施过程监督、完成后受益 | AC44: 以产业补助的形式对脱贫户进行补助，鼓励发展特色产业，激发脱贫人口内生动力，扩大种养殖规模，增加脱贫户收入
A45: 37 | B45: 生产项目（种植/养殖业） | C45: 2023年杜楼镇八庄村特色种养殖补贴到户项目 | D45: 新建 | E45: 县农业农村局 | F45: 杜楼镇 许剑 | G45: 杜楼镇 | H45: 八庄村 | I45: 是 | J45: 扶持75户脱贫户（含监测对象）发展特色种养业 | K45: 2023年12月15日前 | L45: 10.061 | M45: 10.061 | O45: 扶持75户脱贫户发展特色种养业，鼓励其扩大种养殖规模。 | P45: 瓜果蔬菜种植面积15.2亩，羊养殖数量458只，猪养殖数量54头，经济作物种植面积33.2亩 | Q45: 100% | R45: 100% | S45: / | T45: 12.31 | U45: / | V45: / | W45: 75 | X45: 154 | AA45: ≥95% | AB45: 参与项目申报、实施过程监督、完成后受益 | AC45: 以产业补助的形式对脱贫户进行补助，鼓励发展特色产业，激发脱贫人口内生动力，扩大种养殖规模，增加脱贫户收入
A46: 38 | B46: 生产项目（种植/养殖业） | C46: 2023年杜楼镇红庙村特色种养殖补贴到户项目 | D46: 新建 | E46: 县农业农村局 | F46: 杜楼镇 许剑 | G46: 杜楼镇 | H46: 红庙村 | I46: 否 | J46: 扶持14户脱贫户（含监测对象）发展特色种养业 | K46: 2023年12月15日前 | L46: 2.04 | M46: 2.04 | O46: 扶持14户脱贫户发展特色种养业，鼓励其扩大种养殖规模。 | P46: 瓜果蔬菜种植面积2亩，羊养殖数量106只，养鸡4000只 | Q46: 100% | R46: 100% | S46: / | T46: 4.6 | U46: 2.050 | V46: 2.050 | W46: 14 | X46: 27 | AA46: ≥95% | AB46: 参与项目申报、实施过程监督、完成后受益 | AC46: 以产业补助的形式对脱贫户进行补助，鼓励发展特色产业，激发脱贫人口内生动力，扩大种养殖规模，增加脱贫户收入
A47: 39 | B47: 生产项目（种植/养殖业） | C47: 2023年杜楼镇杜老楼村特色种养殖补贴到户项目 | D47: 新建 | E47: 县农业农村局 | F47: 杜楼镇 许剑 | G47: 杜楼镇 | H47: 杜老楼村 | I47: 否 | J47: 扶持43户脱贫户（含监测对象）发展特色种养业 | K47: 2023年12月15日前 | L47: 6.15 | M47: 6.15 | O47: 扶持43户脱贫户发展特色种养业，鼓励其扩大种养殖规模。 | P47: 瓜果蔬菜种植面积2亩，羊养殖数量441只，猪养殖数量3头，经济作物种植面积亩 | Q47: 100% | R47: 100% | S47: / | T47: 8.3 | U47: / | V47: / | W47: 43 | X47: 98 | AA47: ≥95% | AB47: 参与项目申报、实施过程监督、完成后受益 | AC47: 以产业补助的形式对脱贫户进行补助，鼓励发展特色产业，激发脱贫人口内生动力，扩大种养殖规模，增加脱贫户收入
A48: 40 | B48: 生产项目（种植/养殖业） | C48: 2023年官桥镇赵楼村特色种养殖补贴到户项目 | D48: 新建 | E48: 县农业农村局 | F48: 官桥镇 张伟建 | G48: 官桥镇 | H48: 赵楼村 | I48: 是 | J48: 扶持18户脱贫户（含监测对象）发展特色种养业 | K48: 2023年12月15日前 | L48: 2.55 | M48: 2.55 | O48: 扶持18户脱贫户发展特色种养业，鼓励其扩大种养殖规模。 | P48: 瓜果蔬菜种植面积12亩，羊养殖数量87只，猪养殖数量79头，龙虾5亩 | Q48: 100% | R48: 100% | S48: / | T48: 2.55万 | U48: / | V48: / | W48: 18 | X48: 39 | AA48: ≥95% | AB48: 参与项目申报、实施过程监督、完成后受益 | AC48: 以产业补助的形式对脱贫户进行补助，鼓励发展特色产业，激发脱贫人口内生动力，扩大种养殖规模，增加脱贫户收入
A49: 41 | B49: 生产项目（种植/养殖业） | C49: 2023年官桥镇前白村特色种养殖补贴到户项目 | D49: 新建 | E49: 县农业农村局 | F49: 官桥镇 张伟建 | G49: 官桥镇 | H49: 前白村 | I49: 是 | J49: 扶持20户脱贫户（含监测对象）发展特色种养业 | K49: 2023年12月15日前 | L49: 2.028 | M49: 2.028 | O49: 扶持20户脱贫户发展特色种养业，鼓励其扩大种养殖规模。 | P49: 瓜果蔬菜种植面积18.7亩，羊养殖数量64只 | Q49: 100% | R49: 100% | S49: / | T49: 2.028 | U49: / | V49: / | W49: 20 | X49: 41 | AA49: ≥95% | AB49: 参与项目申报、实施过程监督、完成后受益 | AC49: 以产业补助的形式对脱贫户进行补助，鼓励发展特色产业，激发脱贫人口内生动力，扩大种养殖规模，增加脱贫户收入
A50: 42 | B50: 生产项目（种植/养殖业） | C50: 2023年官桥镇吴集村特色种养殖补贴到户项目 | D50: 新建 | E50: 县农业农村局 | F50: 官桥镇 张伟建 | G50: 官桥镇 | H50: 吴集村 | I50: 否 | J50: 扶持33户脱贫户（含监测对象）发展特色种养业 | K50: 2023年12月15日前 | L50: 3.73 | M50: 3.73 | O50: 扶持33户脱贫户发展特色种养业，鼓励其扩大种养殖规模。 | P50: 瓜果蔬菜种植面积50亩，羊养殖数量64只，经济作物种植面积18亩 | Q50: 100% | R50: 100% | S50: / | T50: 3.73 | U50: / | V50: / | W50: 33 | X50: 64 | AA50: ≥95% | AB50: 参与项目申报、实施过程监督、完成后受益 | AC50: 以产业补助的形式对脱贫户进行补助，鼓励发展特色产业，激发脱贫人口内生动力，扩大种养殖规模，增加脱贫户收入
A51: 43 | B51: 生产项目（种植/养殖业） | C51: 2023年官桥镇彭林村特色种养殖补贴到户项目 | D51: 新建 | E51: 县农业农村局 | F51: 官桥镇 张伟建 | G51: 官桥镇 | H51: 彭林村 | I51: 是 | J51: 扶持56户脱贫户（含监测对象）发展特色种养业 | K51: 2023年12月15日前 | L51: 6.986 | M51: 6.986 | O51: 扶持56户脱贫户发展特色种养业，鼓励其扩大种养殖规模。 | P51: 瓜果蔬菜种植面积74.9亩，羊养殖数量242只，猪养殖数量38头，牛养殖数量7头 | Q51: 100% | R51: 100% | T51: 6.986 | U51: / | V51: / | W51: 56 | X51: 131 | AA51: ≥95% | AB51: 参与项目申报、实施过程监督、完成后受益 | AC51: 以产业补助的形式对脱贫户进行补助，鼓励发展特色产业，激发脱贫人口内生动力，扩大种养殖规模，增加脱贫户收入
A52: 44 | B52: 生产项目（种植/养殖业） | C52: 2023年官桥镇高庄村特色种养殖补贴到户项目 | D52: 新建 | E52: 县农业农村局 | F52: 官桥镇 张伟建 | G52: 官桥镇 | H52: 高庄村 | I52: 否 | J52: 扶持10户脱贫户（含监测对象）发展特色种养业 | K52: 2023年12月15日前 | L52: 1.34 | M52: 1.34 | O52: 扶持10户脱贫户发展特色种养业，鼓励其扩大种养殖规模。 | P52: 瓜果蔬菜种植面积5.5亩，羊养殖数量141只，猪养殖数量70头 | Q52: 100% | R52: 100% | S52: / | T52: 1.34 | U52: / | V52: / | W52: 10 | X52: 24 | AA52: ≥95% | AB52: 参与项目申报、实施过程监督、完成后受益 | AC52: 以产业补助的形式对脱贫户进行补助，鼓励发展特色产业，激发脱贫人口内生动力，扩大种养殖规模，增加脱贫户收入
A53: 45 | B53: 生产项目（种植/养殖业） | C53: 2023年黄口镇徐洼村特色种养殖补贴到户项目 | D53: 新建 | E53: 县农业农村局 | F53: 黄口镇 杨梅 | G53: 黄口镇 | H53: 徐洼村 | I53: 否 | J53: 扶持65户脱贫户（含监测对象）发展特色种养业 | K53: 2023年12月15日前 | L53: 7.6373 | M53: 7.6373 | O53: 扶持65户脱贫户发展特色种养业，鼓励其扩大种养殖规模。 | P53: 瓜果蔬菜种植面积85.1亩，羊养殖数量158只，猪养殖数量24头 | Q53: 100% | R53: 100% | T53: =M53*1.2 -> 9.16476 | W53: 65 | X53: 149 | AA53: ≥95% | AB53: 参与项目申报、实施过程监督、完成后受益 | AC53: 以产业补助的形式对脱贫户进行补助，鼓励发展特色产业，激发脱贫人口内生动力，扩大种养殖规模，增加脱贫户收入
A54: 46 | B54: 生产项目（种植/养殖业） | C54: 2023年黄口镇老黄口村特色种养殖补贴到户项目 | D54: 新建 | E54: 县农业农村局 | F54: 黄口镇 杨梅 | G54: 黄口镇 | H54: 老黄口村 | I54: 否 | J54: 扶持100户脱贫户（含监测对象）发展特色种养业 | K54: 2023年12月15日前 | L54: 10.5875 | M54: 10.5875 | O54: 扶持100户脱贫户发展特色种养业，鼓励其扩大种养殖规模。 | P54: 瓜果蔬菜种植面积131.9亩，羊养殖数量185只，猪养殖数量38头 | Q54: 100% | R54: 100% | T54: 12.705 | W54: 100 | X54: 247 | AA54: ≥95% | AB54: 参与项目申报、实施过程监督、完成后受益 | AC54: 以产业补助的形式对脱贫户进行补助，鼓励发展特色产业，激发脱贫人口内生动力，扩大种养殖规模，增加脱贫户收入
A55: 47 | B55: 生产项目（种植/养殖业） | C55: 2023年黄口镇镇西社区特色种养殖补贴到户项目 | D55: 新建 | E55: 县农业农村局 | F55: 黄口镇 杨梅 | G55: 黄口镇 | H55: 镇西社区 | I55: 否 | J55: 扶持7户脱贫户（含监测对象）发展特色种养业 | K55: 2023年12月15日前 | L55: 0.88 | M55: 0.88 | O55: 扶持7户脱贫户发展特色种养业，鼓励其扩大种养殖规模。 | P55: 瓜果蔬菜种植面积5亩，羊养殖数量35只， | Q55: 100% | R55: 100% | T55: 1.056 | W55: 7 | X55: 14 | AA55: ≥95% | AB55: 参与项目申报、实施过程监督、完成后受益 | AC55: 以产业补助的形式对脱贫户进行补助，鼓励发展特色产业，激发脱贫人口内生动力，扩大种养殖规模，增加脱贫户收入
A56: 48 | B56: 生产项目（种植/养殖业） | C56: 2023年黄口镇陈土楼村特色种养殖补贴到户项目 | D56: 新建 | E56: 县农业农村局 | F56: 黄口镇 杨梅 | G56: 黄口镇 | H56: 陈土楼村 | I56: 是 | J56: 扶持115户脱贫户（含监测对象）发展特色种养业 | K56: 2023年12月15日前 | L56: 12.754 | M56: 12.754 | O56: 扶持115户脱贫户发展特色种养业，鼓励其扩大种养殖规模。 | P56: 瓜果蔬菜种植面积17.1亩，羊养殖数量25只，猪养殖数量44头 | Q56: 100% | R56: 100% | T56: 15.3048 | W56: 115 | X56: 270 | AA56: ≥95% | AB56: 参与项目申报、实施过程监督、完成后受益 | AC56: 以产业补助的形式对脱贫户进行补助，鼓励发展特色产业，激发脱贫人口内生动力，扩大种养殖规模，增加脱贫户收入
A57: 49 | B57: 生产项目（种植/养殖业） | C57: 2023年黄口镇邵庄村特色种养殖补贴到户项目 | D57: 新建 | E57: 县农业农村局 | F57: 黄口镇 杨梅 | G57: 黄口镇 | H57: 邵庄村 | I57: 否 | J57: 扶持144户脱贫户（含监测对象）发展特色种养业 | K57: 2023年12月15日前 | L57: 19.4595 | M57: 19.4595 | O57: 扶持144户脱贫户发展特色种养业，鼓励其扩大种养殖规模。 | P57: 瓜果蔬菜种植面积250.6亩，羊养殖数量229只，猪养殖数量19头 | Q57: 100% | R57: 100% | T57: 23.3514 | W57: 144 | X57: 305 | AA57: ≥95% | AB57: 参与项目申报、实施过程监督、完成后受益 | AC57: 以产业补助的形式对脱贫户进行补助，鼓励发展特色产业，激发脱贫人口内生动力，扩大种养殖规模，增加脱贫户收入
A58: 50 | B58: 生产项目（种植/养殖业） | C58: 2023年黄口镇唐元村特色种养殖补贴到户项目 | D58: 新建 | E58: 县农业农村局 | F58: 黄口镇 杨梅 | G58: 黄口镇 | H58: 唐元村 | I58: 是 | J58: 扶持151户脱贫户（含监测对象）发展特色种养业 | K58: 2023年12月15日前 | L58: 12.8925 | M58: 12.8925 | O58: 扶持151户脱贫户发展特色种养业，鼓励其扩大种养殖规模。 | P58: 瓜果蔬菜种植面积264.1亩，羊养殖数量68只，猪养殖数量6头 | Q58: 100% | R58: 100% | T58: 15.471 | W58: 151 | X58: 282 | AA58: ≥95% | AB58: 参与项目申报、实施过程监督、完成后受益 | AC58: 以产业补助的形式对脱贫户进行补助，鼓励发展特色产业，激发脱贫人口内生动力，扩大种养殖规模，增加脱贫户收入
A59: 51 | B59: 生产项目（种植/养殖业） | C59: 2023年黄口镇唐庄村特色种养殖补贴到户项目 | D59: 新建 | E59: 县农业农村局 | F59: 黄口镇 杨梅 | G59: 黄口镇 | H59: 唐庄村 | I59: 否 | J59: 扶持30户脱贫户（含监测对象）发展特色种养业 | K59: 2023年12月15日前 | L59: 4.258 | M59: 4.258 | O59: 扶持30户脱贫户发展特色种养业，鼓励其扩大种养殖规模。 | P59: 瓜果蔬菜种植面积32.2亩，羊养殖数量112只，猪养殖数量20头 | Q59: 100% | R59: 100% | T59: 5.1096 | W59: 30 | X59: 149 | AA59: ≥95% | AB59: 参与项目申报、实施过程监督、完成后受益 | AC59: 以产业补助的形式对脱贫户进行补助，鼓励发展特色产业，激发脱贫人口内生动力，扩大种养殖规模，增加脱贫户收入
A60: 52 | B60: 生产项目（种植/养殖业） | C60: 2023年黄口镇瓦房村特色种养殖补贴到户项目 | D60: 新建 | E60: 县农业农村局 | F60: 黄口镇 杨梅 | G60: 黄口镇 | H60: 瓦房村 | I60: 是 | J60: 扶持35户脱贫户（含监测对象）发展特色种养业 | K60: 2023年12月15日前 | L60: 4.625 | M60: 4.625 | O60: 扶持35户脱贫户发展特色种养业，鼓励其扩大种养殖规模。 | P60: 瓜果蔬菜种植面积21亩，羊154只，猪养殖数量14头 | Q60: 100% | R60: 100% | T60: 5.55 | W60: 35 | X60: 83 | AA60: ≥95% | AB60: 参与项目申报、实施过程监督、完成后受益 | AC60: 以产业补助的形式对脱贫户进行补助，鼓励发展特色产业，激发脱贫人口内生动力，扩大种养殖规模，增加脱贫户收入
A61: 53 | B61: 生产项目（种植/养殖业） | C61: 2023年黄口镇杨阁社区特色种养殖补贴到户项目 | D61: 新建 | E61: 县农业农村局 | F61: 黄口镇 杨梅 | G61: 黄口镇 | H61: 杨阁社区 | I61: 否 | J61: 扶持26户脱贫户（含监测对象）发展特色种养业 | K61: 2023年12月15日前 | L61: 3.72 | M61: 3.72 | O61: 扶持26户脱贫户发展特色种养业，鼓励其扩大种养殖规模。 | P61: 瓜果蔬菜种植面积17亩，羊养殖数量122只，猪养殖数量55头 | Q61: 100% | R61: 100% | T61: 4.464 | W61: 26 | X61: 62 | AA61: ≥95% | AB61: 参与项目申报、实施过程监督、完成后受益 | AC61: 以产业补助的形式对脱贫户进行补助，鼓励发展特色产业，激发脱贫人口内生动力，扩大种养殖规模，增加脱贫户收入
A62: 54 | B62: 生产项目（种植/养殖业） | C62: 2023年黄口镇张寨村特色种养殖补贴到户项目 | D62: 新建 | E62: 县农业农村局 | F62: 黄口镇 杨梅 | G62: 黄口镇 | H62: 张寨村 | I62: 否 | J62: 扶持40户脱贫户（含监测对象）发展特色种养业 | K62: 2023年12月15日前 | L62: 4.9625 | M62: 4.9625 | O62: 扶持40户脱贫户发展特色种养业，鼓励其扩大种养殖规模。 | P62: 瓜果蔬菜种植面积22亩，羊养殖数量204只，猪养殖数量34头 | Q62: 100% | R62: 100% | T62: 5.955 | W62: 40 | X62: 98 | AA62: ≥95% | AB62: 参与项目申报、实施过程监督、完成后受益 | AC62: 以产业补助的形式对脱贫户进行补助，鼓励发展特色产业，激发脱贫人口内生动力，扩大种养殖规模，增加脱贫户收入
A63: 55 | B63: 生产项目（种植/养殖业） | C63: 2023年黄口镇镇北社区特色种养殖补贴到户项目 | D63: 新建 | E63: 县农业农村局 | F63: 黄口镇 杨梅 | G63: 黄口镇 | H63: 镇北社区 | I63: 否 | J63: 扶持80户脱贫户（含监测对象）发展特色种养业 | K63: 2023年12月15日前 | L63: 8.17 | M63: 8.17 | O63: 扶持80户脱贫户发展特色种养业，鼓励其扩大种养殖规模。 | P63: 瓜果蔬菜种植面积147.2亩，羊养殖数量91只，猪养殖数量22头 | Q63: 100% | R63: 100% | T63: 9.804 | W63: 80 | X63: 161 | AA63: ≥95% | AB63: 参与项目申报、实施过程监督、完成后受益 | AC63: 以产业补助的形式对脱贫户进行补助，鼓励发展特色产业，激发脱贫人口内生动力，扩大种养殖规模，增加脱贫户收入
A64: 56 | B64: 生产项目（种植/养殖业） | C64: 2023年黄口镇镇东社区特色种养殖补贴到户项目 | D64: 新建 | E64: 县农业农村局 | F64: 黄口镇 杨梅 | G64: 黄口镇 | H64: 镇东社区 | I64: 否 | J64: 扶持5户脱贫户（含监测对象）发展特色种养业 | K64: 2023年12月15日前 | L64: 0.68 | M64: 0.68 | O64: 扶持5户脱贫户发展特色种养业，鼓励其扩大种养殖规模。 | P64: 瓜果蔬菜种植面积4亩，猪养殖数量17头 | Q64: 100% | R64: 100% | T64: 0.816 | W64: 5 | X64: 6 | AA64: ≥95% | AB64: 参与项目申报、实施过程监督、完成后受益 | AC64: 以产业补助的形式对脱贫户进行补助，鼓励发展特色产业，激发脱贫人口内生动力，扩大种养殖规模，增加脱贫户收入
A65: 57 | B65: 生产项目（种植/养殖业） | C65: 2023年黄口镇镇南社区特色种养殖补贴到户项目 | D65: 新建 | E65: 县农业农村局 | F65: 黄口镇 杨梅 | G65: 黄口镇 | H65: 镇南社区 | I65: 否 | J65: 扶持8户脱贫户（含监测对象）发展特色种养业 | K65: 2023年12月15日前 | L65: 1.2 | M65: 1.2 | O65: 扶持8户脱贫户发展特色种养业，鼓励其扩大种养殖规模。 | P65: 羊养殖数量73只种植面积亩 | Q65: 100% | R65: 100% | T65: 1.44 | W65: 8 | X65: 25 | AA65: ≥95% | AB65: 参与项目申报、实施过程监督、完成后受益 | AC65: 以产业补助的形式对脱贫户进行补助，鼓励发展特色产业，激发脱贫人口内生动力，扩大种养殖规模，增加脱贫户收入
A66: 58 | B66: 生产项目（种植/养殖业） | C66: 2023年黄口镇朱庄村特色种养殖补贴到户项目 | D66: 新建 | E66: 县农业农村局 | F66: 黄口镇 杨梅 | G66: 黄口镇 | H66: 朱庄村 | I66: 否 | J66: 扶持137户脱贫户（含监测对象）发展特色种养业 | K66: 2023年12月15日前 | L66: 14.188 | M66: 14.188 | O66: 扶持137户脱贫户发展特色种养业，鼓励其扩大种养殖规模。 | P66: 瓜果蔬菜种植面积163.8亩，羊养殖数量240只，猪养殖数量86头 | Q66: 100% | R66: 100% | T66: 17.0256 | W66: 137 | X66: 177 | AA66: ≥95% | AB66: 参与项目申报、实施过程监督、完成后受益 | AC66: 以产业补助的形式对脱贫户进行补助，鼓励发展特色产业，激发脱贫人口内生动力，扩大种养殖规模，增加脱贫户收入
A67: 59 | B67: 生产项目（种植/养殖业） | C67: 2023年黄口镇暗楼村特色种养殖补贴到户项目 | D67: 新建 | E67: 县农业农村局 | F67: 黄口镇 杨梅 | G67: 黄口镇 | H67: 暗楼村 | I67: 否 | J67: 扶持134户脱贫户（含监测对象）发展特色种养业 | K67: 2023年12月15日前 | L67: 13.2185 | M67: 13.2185 | O67: 扶持134户脱贫户发展特色种养业，鼓励其扩大种养殖规模。 | P67: 瓜果蔬菜种植面积166.2亩，羊养殖数量244只，猪养殖数量18头 | Q67: 100% | R67: 100% | T67: 15.8622 | W67: 134 | X67: 278 | AA67: ≥95% | AB67: 参与项目申报、实施过程监督、完成后受益 | AC67: 以产业补助的形式对脱贫户进行补助，鼓励发展特色产业，激发脱贫人口内生动力，扩大种养殖规模，增加脱贫户收入
A68: 60 | B68: 生产项目（种植/养殖业） | C68: 2023年黄口镇孙庙村特色种养殖补贴到户项目 | D68: 新建 | E68: 县农业农村局 | F68: 黄口镇 杨梅 | G68: 黄口镇 | H68: 孙庙村 | I68: 否 | J68: 扶持151户脱贫户（含监测对象）发展特色种养业 | K68: 2023年12月15日前 | L68: 15.1865 | M68: 15.1865 | O68: 扶持151户脱贫户发展特色种养业，鼓励其扩大种养殖规模。 | P68: 瓜果蔬菜种植面积252.1亩，羊养殖数量237只，猪养殖数量3头 | Q68: 100% | R68: 100% | T68: 18.2238 | W68: 157 | X68: 293 | AA68: ≥95% | AB68: 参与项目申报、实施过程监督、完成后受益 | AC68: 以产业补助的形式对脱贫户进行补助，鼓励发展特色产业，激发脱贫人口内生动力，扩大种养殖规模，增加脱贫户收入
A69: 61 | B69: 生产项目（种植/养殖业） | C69: 2023年黄口镇马常庄村特色种养殖补贴到户项目 | D69: 新建 | E69: 县农业农村局 | F69: 黄口镇 杨梅 | G69: 黄口镇 | H69: 马常庄村 | I69: 否 | J69: 扶持70户脱贫户（含监测对象）发展特色种养业 | K69: 2023年12月15日前 | L69: 8.903 | M69: 8.903 | O69: 扶持70户脱贫户发展特色种养业，鼓励其扩大种养殖规模。 | P69: 瓜果蔬菜种植面积77.2亩，羊养殖数量229只， | Q69: 100% | R69: 100% | T69: 10.6836 | W69: 70 | X69: 182 | AA69: ≥95% | AB69: 参与项目申报、实施过程监督、完成后受益 | AC69: 以产业补助的形式对脱贫户进行补助，鼓励发展特色产业，激发脱贫人口内生动力，扩大种养殖规模，增加脱贫户收入
A70: 62 | B70: 生产项目（种植/养殖业） | C70: 2023年酒店镇丹楼村特色种养殖补贴到户项目 | D70: 新建 | E70: 县农业农村局 | F70: 酒店镇 杜龙升 | G70: 酒店镇 | H70: 丹楼村 | I70: 否 | J70: 扶持100户脱贫户（含监测对象）发展特色种养业 | K70: 2023年12月15日前 | L70: =M70+N70 -> 15 | M70: 15 | O70: 扶持100户脱贫户发展特色种养业，鼓励其扩大种养殖规模。 | P70: 羊530只，猪210头，鸡5000只，西瓜60亩，蔬菜23亩，桃3亩。 | Q70: 100% | R70: 100% | S70: / | T70: 34 | U70: / | V70: / | W70: 100 | X70: 235 | AA70: ≥95% | AB70: 参与项目申报、实施过程监督、完成后受益 | AC70: 以产业补助的形式对脱贫户进行补助，鼓励发展特色产业，激发脱贫人口内生动力，扩大种养殖规模，增加脱贫户收入
A71: 63 | B71: 生产项目（种植/养殖业） | C71: 2023年酒店镇丁庄村特色种养殖补贴到户项目 | D71: 新建 | E71: 县农业农村局 | F71: 酒店镇 杜龙升 | G71: 酒店镇 | H71: 丁庄村 | I71: 否 | J71: 扶持195户脱贫户（含监测对象）发展特色种养业 | K71: 2023年12月15日前 | L71: 29.25 | M71: 29.25 | O71: 扶持195户脱贫户发展特色种养业，鼓励其扩大种养殖规模。 | P71: 梨99.5亩、苹果295..5亩、桃245亩、葡萄6亩、羊、羊54头、猪6头 | Q71: 100% | R71: 100% | S71: / | T71: 49.520 | U71: / | V71: / | W71: 195 | X71: 558 | AA71: ≥95% | AB71: 参与项目申报、实施过程监督、完成后受益 | AC71: 以产业补助的形式对脱贫户进行补助，鼓励发展特色产业，激发脱贫人口内生动力，扩大种养殖规模，增加脱贫户收入
A72: 64 | B72: 生产项目（种植/养殖业） | C72: 2023年酒店镇东镇村特色种养殖补贴到户项目 | D72: 新建 | E72: 县农业农村局 | F72: 酒店镇 杜龙升 | G72: 酒店镇 | H72: 东镇村 | I72: 否 | J72: 扶持100户脱贫户发展特色种养业 | K72: 2023年12月15日前 | L72: 15 | M72: 15 | O72: 扶持100户脱贫户发展特色种养业，鼓励其扩大种养殖规模。 | P72: 养羊520只，养猪75头，鹅1500只，水果105亩，芦笋2亩。 | Q72: 100% | R72: 100% | S72: / | T72: 35 | U72: / | V72: / | W72: 100 | X72: 231 | AA72: ≥95% | AB72: 参与项目申报、实施过程监督、完成后受益 | AC72: 以产业补助的形式对脱贫户进行补助，鼓励发展特色产业，激发脱贫人口内生动力，扩大种养殖规模，增加脱贫户收入
A73: 65 | B73: 生产项目（种植/养殖业） | C73: 2023年酒店镇何寨村特色种养殖补贴到户项目 | D73: 新建 | E73: 县农业农村局 | F73: 酒店镇 杜龙升 | G73: 酒店镇 | H73: 何寨村 | I73: 否 | J73: 扶持90户脱贫户（含监测对象）发展特色种养业 | K73: 2023年12月15日前 | L73: 13.5 | M73: 13.5 | O73: 扶持90户脱贫户发展特色种养业，鼓励其扩大种养殖规模。 | P73: 羊300只，猪80头，西瓜800亩. | Q73: 100% | R73: 100% | S73: / | T73: 27 | U73: / | V73: / | W73: 90 | X73: 270 | AA73: ≥95% | AB73: 参与项目申报、实施过程监督、完成后受益 | AC73: 以产业补助的形式对脱贫户进行补助，鼓励发展特色产业，激发脱贫人口内生动力，扩大种养殖规模，增加脱贫户收入
A74: 66 | B74: 生产项目（种植/养殖业） | C74: 2023年酒店镇和谐村特色种养殖补贴到户项目 | D74: 新建 | E74: 县农业农村局 | F74: 酒店镇 杜龙升 | G74: 酒店镇 | H74: 和谐村 | I74: 否 | J74: 扶持90户脱贫户（含监测对象）发展特色种养业 | K74: 2023年12月15日前 | L74: 13.5 | M74: 13.5 | O74: 扶持90户脱贫户发展特色种养业，鼓励其扩大种养殖规模。 | P74: 养羊260只，养猪15头，大棚西瓜120亩 | Q74: 100% | R74: 100% | S74: / | T74: 30 | U74: / | V74: / | W74: 90 | X74: 180 | AA74: ≥95% | AB74: 参与项目申报、实施过程监督、完成后受益 | AC74: 以产业补助的形式对脱贫户进行补助，鼓励发展特色产业，激发脱贫人口内生动力，扩大种养殖规模，增加脱贫户收入
A75: 67 | B75: 生产项目（种植/养殖业） | C75: 2023年酒店镇酒店村特色种养业奖补到户项目 | D75: 新建 | E75: 县农业农村局 | F75: 酒店镇 杜龙升 | G75: 酒店镇 | H75: 酒店村 | I75: 是 | J75: 扶持165户脱贫户（含监测对象）发展特色种养业 | K75: 2023年12月15日前 | L75: 24.75 | M75: 24.75 | O75: 扶持165户脱贫户发展特色种养业，鼓励其扩大种养殖规模。 | P75: 羊600只，猪350头，蔬菜35亩，西瓜 300亩，鸭子10000只、鹅 6000只、兔子200只、鱼塘5亩、牛10头 | Q75: 100% | R75: 100% | S75: / | T75: 60.000 | U75: / | V75: / | W75: 165 | X75: 500 | AA75: ≥95% | AB75: 参与项目申报、实施过程监督、完成后受益 | AC75: 以产业补助的形式对脱贫户进行补助，鼓励发展特色产业，激发脱贫人口内生动力，扩大种养殖规模，增加脱贫户收入
A76: 68 | B76: 生产项目（种植/养殖业） | C76: 2023年酒店镇李庄村特色种养业奖补到户项目 | D76: 新建 | E76: 县农业农村局 | F76: 酒店镇 杜龙升 | G76: 酒店镇 | H76: 李庄村 | I76: 是 | J76: 扶持100户脱贫户（含监测对象）发展特色种养业 | K76: 2023年12月15日前 | L76: 15 | M76: 15 | O76: 扶持100户脱贫户发展特色种养业，鼓励其扩大种养殖规模。 | P76: 羊500只，猪80头，西瓜260亩，梨30亩，苹果70亩，桃50亩。 | Q76: 100% | R76: 100% | S76: / | T76: 39.600 | U76: / | V76: / | W76: 100 | X76: 370 | AA76: ≥95% | AB76: 参与项目申报、实施过程监督、完成后受益 | AC76: 以产业补助的形式对脱贫户进行补助，鼓励发展特色产业，激发脱贫人口内生动力，扩大种养殖规模，增加脱贫户收入
A77: 69 | B77: 生产项目（种植/养殖业） | C77: 2023年酒店镇孟暗楼村特色种养业奖补到户项目 | D77: 新建 | E77: 县农业农村局 | F77: 酒店镇 杜龙升 | G77: 酒店镇 | H77: 孟暗楼村 | I77: 否 | J77: 扶持160户脱贫户（含监测对象）发展特色种养业 | K77: 2023年12月15日前 | L77: =M77+N77 -> 24 | M77: 24 | O77: 扶持160户脱贫户发展特色种养业，鼓励其扩大种养殖规模。 | P77: 羊800只，猪350头，蔬菜35亩，果树80母，西瓜 600亩，鸭子10000只、鹅 6000只、兔子200只、鱼塘40亩、牛10头 | Q77: 100% | R77: 100% | S77: / | T77: 60.000 | U77: / | V77: / | W77: 160 | X77: 490 | AA77: ≥95% | AB77: 参与项目申报、实施过程监督、完成后受益 | AC77: 以产业补助的形式对脱贫户进行补助，鼓励发展特色产业，激发脱贫人口内生动力，扩大种养殖规模，增加脱贫户收入
A78: 70 | B78: 生产项目（种植/养殖业） | C78: 2023年酒店镇旗杆村特色种养业奖补到户项目 | D78: 新建 | E78: 县农业农村局 | F78: 酒店镇 杜龙升 | G78: 酒店镇 | H78: 旗杆村 | I78: 是 | J78: 扶持115户脱贫户（含监测对象）发展特色种养业 | K78: 2023年12月15日前 | L78: 17.25 | M78: 17.25 | O78: 扶持115户脱贫户发展特色种养业，鼓励其扩大种养殖规模。 | P78: 中药材种植面积20亩，猪养殖数量580头，牛养殖数量20头，羊养殖数量689只，养鹅3000只，养鸡500只 | Q78: 100% | R78: 100% | S78: / | T78: 36.000 | U78: / | V78: / | W78: 115 | X78: 290 | AA78: ≥95% | AB78: 参与项目申报、实施过程监督、完成后受益 | AC78: 以产业补助的形式对脱贫户进行补助，鼓励发展特色产业，激发脱贫人口内生动力，扩大种养殖规模，增加脱贫户收入
A79: 71 | B79: 生产项目（种植/养殖业） | C79: 2023年酒店镇申河村特色种养业奖补到户项目 | D79: 新建 | E79: 县农业农村局 | F79: 酒店镇 杜龙升 | G79: 酒店镇 | H79: 申河村 | I79: 是 | J79: 扶持116户脱贫户（含监测对象）发展特色种养业 | K79: 2023年12月15日前 | L79: 17.4 | M79: 17.4 | O79: 扶持116户脱贫户发展特色种养业，鼓励其扩大种养殖规模。 | P79: 羊790只，猪35头，鹅230只，果树15.9亩，中药材25.7亩，大棚西瓜55亩，牛20头 | Q79: 100% | R79: 100% | S79: / | T79: 32.000 | U79: / | V79: / | W79: 116 | X79: 233 | AA79: ≥95% | AB79: 参与项目申报、实施过程监督、完成后受益 | AC79: 以产业补助的形式对脱贫户进行补助，鼓励发展特色产业，激发脱贫人口内生动力，扩大种养殖规模，增加脱贫户收入
A80: 72 | B80: 生产项目（种植/养殖业） | C80: 2023年酒店镇西赵楼村特色种养殖补贴到户项目 | D80: 新建 | E80: 县农业农村局 | F80: 酒店镇 杜龙升 | G80: 酒店镇 | H80: 西赵楼村 | I80: 否 | J80: 扶持80户脱贫户（含监测对象）发展特色种养业 | K80: 2023年12月15日前 | L80: 12 | M80: 12 | O80: 扶持80户脱贫户发展特色种养业，鼓励其扩大种养殖规模。 | P80: 羊300只，猪80头，西瓜860亩，梨10亩，苹果20亩，桃10亩。 | Q80: 100% | R80: 100% | S80: / | T80: 24.000 | U80: / | V80: / | W80: 80 | X80: 260 | AA80: ≥95% | AB80: 参与项目申报、实施过程监督、完成后受益 | AC80: 以产业补助的形式对脱贫户进行补助，鼓励发展特色产业，激发脱贫人口内生动力，扩大种养殖规模，增加脱贫户收入
A81: 73 | B81: 生产项目（种植/养殖业） | C81: 2023年酒店镇杨楼村特色种养业奖补到户 | D81: 新建 | E81: 县农业农村局 | F81: 酒店镇 杜龙升 | G81: 酒店镇 | H81: 杨楼村 | I81: 否 | J81: 扶持80户脱贫户（含监测对象）发展特色种养业 | K81: 2023年12月15日前 | L81: 12 | M81: 12 | O81: 扶持80户脱贫户发展特色种养业，鼓励其扩大种养殖规模。 | P81: 羊480只，猪50头，西瓜6亩 | Q81: 100% | R81: 100% | S81: / | T81: 30 | U81: / | V81: / | W81: 80 | X81: 260 | AA81: ≥95% | AB81: 参与项目申报、实施过程监督、完成后受益 | AC81: 以产业补助的形式对脱贫户进行补助，鼓励发展特色产业，激发脱贫人口内生动力，扩大种养殖规模，增加脱贫户收入
A82: 74 | B82: 生产项目（种植/养殖业） | C82: 2023年酒店镇赵圈村特色种养业奖补到户 | D82: 新建 | E82: 县农业农村局 | F82: 酒店镇 杜龙升 | G82: 酒店镇 | H82: 赵圈村 | I82: 是 | J82: 扶持130户脱贫户（含监测对象）发展特色种养业 | K82: 2023年12月15日前 | L82: 19.5 | M82: 19.5 | O82: 扶持130户脱贫户发展特色种养业，鼓励其扩大种养殖规模。 | P82: 羊100只，猪200头，蔬菜100亩，西瓜 700亩，鸭子5000只、鹅 6000只、兔子500只、鱼塘10亩、牛50头 | Q82: 100% | R82: 100% | S82: / | T82: 60.000 | U82: / | V82: / | W82: 130 | X82: 310 | AA82: ≥95% | AB82: 参与项目申报、实施过程监督、完成后受益 | AC82: 以产业补助的形式对脱贫户进行补助，鼓励发展特色产业，激发脱贫人口内生动力，扩大种养殖规模，增加脱贫户收入
A83: 75 | B83: 生产项目（种植/养殖业） | C83: 2023年刘套镇徐安村特色种养殖补贴到户项目 | D83: 新建 | E83: 县农业农村局 | F83: 刘套镇 李磊 | G83: 刘套镇 | H83: 徐安村 | I83: 否 | J83: 扶持33户脱贫户（含监测对象）发展特色种养业 | K83: 2023年12月15日前 | L83: 4.95 | M83: 4.95 | O83: 扶持33户脱贫户发展特色种养业，鼓励其扩大种养殖规模。 | P83: 季节性露地蔬菜种植（大蒜）20亩，猪养殖数量65头，羊养殖数量179只，养殖蜜蜂15箱，种植黏玉米2亩，种植蔬菜大棚2亩。 | Q83: 100% | R83: 100% | S83: / | T83: =L83*1.2 -> 5.94 | U83: / | V83: / | W83: 33 | X83: 91 | AA83: ≥95% | AB83: 参与项目申报、实施过程监督、完成后受益 | AC83: 以产业补助的形式对脱贫户进行补助，鼓励发展特色产业，激发脱贫人口内生动力，扩大种养殖规模，增加脱贫户收入
A84: 76 | B84: 生产项目（种植/养殖业） | C84: 2023年刘套镇刘套村特色种养殖补贴到户项目 | D84: 新建 | E84: 县农业农村局 | F84: 刘套镇 李磊 | G84: 刘套镇 | H84: 刘套村 | I84: 否 | J84: 扶持30户脱贫户（含监测对象）发展特色种养业 | K84: 2023年12月15日前 | L84: 4.5 | M84: 4.5 | O84: 扶持30户脱贫户发展特色种养业，鼓励其扩大种养殖规模。 | P84: 瓜果蔬菜种植面积50.5亩，猪养殖数量41头，羊养殖数量146只， | Q84: 100% | R84: 100% | S84: / | T84: 5.4 | U84: / | W84: 30 | X84: 67 | AA84: ≥95% | AB84: 参与项目申报、实施过程监督、完成后受益 | AC84: 以产业补助的形式对脱贫户进行补助，鼓励发展特色产业，激发脱贫人口内生动力，扩大种养殖规模，增加脱贫户收入
A85: 77 | B85: 生产项目（种植/养殖业） | C85: 2023年刘套镇常楼村特色种养殖补贴到户项目 | D85: 新建 | E85: 县农业农村局 | F85: 刘套镇 李磊 | G85: 刘套镇 | H85: 常楼村 | I85: 否 | J85: 扶持30户脱贫户（含监测对象）发展特色种养业 | K85: 2023年12月15日前 | L85: 4.5 | M85: 4.5 | O85: 扶持30户脱贫户发展特色种养业，鼓励其扩大种养殖规模。 | P85: 猪羊养殖数量120头，羊养殖数量30只，鱼塘9亩，种植露天蔬菜2.2亩，瓜果种植3亩 | Q85: 100% | R85: 100% | S85: / | T85: 5.4 | U85: / | V85: / | W85: 30 | X85: 67 | AA85: ≥95% | AB85: 参与项目申报、实施过程监督、完成后受益 | AC85: 以产业补助的形式对脱贫户进行补助，鼓励发展特色产业，激发脱贫人口内生动力，扩大种养殖规模，增加脱贫户收入
A86: 78 | B86: 生产项目（种植/养殖业） | C86: 2023年刘套镇李圩村特色种养殖补贴到户项目 | D86: 新建 | E86: 县农业农村局 | F86: 刘套镇 李磊 | G86: 刘套镇 | H86: 李圩村 | I86: 否 | J86: 扶持101户脱贫户（含监测对象）发展特色种养业项目 | K86: 2023年12月15日前 | L86: 15.15 | M86: 15.15 | O86: 扶持101户脱贫户发展特色种养业，鼓励其扩大种养殖规模。 | P86: 水果种植面积246亩，露天蔬菜（芦笋）种植2亩，猪养殖数量30头，羊养殖数量105只，鸡养殖数量1000羽，观赏鱼养殖面积100平方。 | Q86: 100% | R86: 100% | S86: / | T86: 18.18 | U86: / | V86: / | W86: 101 | X86: 223 | AA86: ≥95% | AB86: 参与项目申报、实施过程监督、完成后受益 | AC86: 以产业补助的形式对脱贫户进行补助，鼓励发展特色产业，激发脱贫人口内生动力，扩大种养殖规模，增加脱贫户收入
A87: 79 | B87: 生产项目（种植/养殖业） | C87: 2023年刘套镇管粥集村特色种养殖补贴到户项目 | D87: 新建 | E87: 县农业农村局 | F87: 刘套镇 李磊 | G87: 刘套镇 | H87: 管粥集村 | I87: 否 | J87: 扶持43户脱贫户（含监测对象）发展特色种养业 | K87: 2023年12月15日前 | L87: 6.45 | M87: 6.45 | O87: 扶持43户脱贫户发展特色种养业，鼓励其扩大种养殖规模。 | P87: 瓜果种植面积79亩，猪养殖数量136头，羊养殖数量46只，其它70000只。 | Q87: 100% | R87: 100% | S87: / | T87: 7.74 | U87: / | V87: / | W87: 43 | X87: 104 | AA87: ≥95% | AB87: 参与项目申报、实施过程监督、完成后受益 | AC87: 以产业补助的形式对脱贫户进行补助，鼓励发展特色产业，激发脱贫人口内生动力，扩大种养殖规模，增加脱贫户收入
A88: 80 | B88: 生产项目（种植/养殖业） | C88: 2023年刘套镇陈屯村特色种养殖补贴到户项目 | D88: 新建 | E88: 县农业农村局 | F88: 刘套镇 李磊 | G88: 刘套镇 | H88: 陈屯村 | I88: 是 | J88: 扶持38户脱贫户（含监测对象）发展特色种养业 | K88: 2023年12月15日前 | L88: 5.7 | M88: 5.7 | O88: 扶持38户脱贫户发展特色种养业，鼓励其扩大种养殖规模。 | P88: 瓜果种植面积16.9亩，猪养殖数量73头，羊养殖数量285只， | Q88: 100% | R88: 100% | S88: / | T88: 6.84 | U88: / | V88: / | W88: 38 | X88: 90 | AA88: ≥95% | AB88: 参与项目申报、实施过程监督、完成后受益 | AC88: 以产业补助的形式对脱贫户进行补助，鼓励发展特色产业，激发脱贫人口内生动力，扩大种养殖规模，增加脱贫户收入
A89: 81 | B89: 生产项目（种植/养殖业） | C89: 2023年刘套镇张庄村特色种养殖补贴到户项目 | D89: 新建 | E89: 县农业农村局 | F89: 刘套镇 李磊 | G89: 刘套镇 | H89: 张庄村 | I89: 否 | J89: 扶持32户脱贫户（含监测对象）发展特色种养业 | K89: 2023年12月15日前 | L89: 4.8 | M89: 4.8 | O89: 扶持32户脱贫户发展特色种养业，鼓励其扩大种养殖规模。 | P89: 桃树种植面积2亩，猪养殖数量20头，羊养殖数量224只， | Q89: 100% | R89: 100% | S89: / | T89: 5.76 | U89: / | V89: / | W89: 24 | X89: 53 | AA89: ≥95% | AB89: 参与项目申报、实施过程监督、完成后受益 | AC89: 以产业补助的形式对脱贫户进行补助，鼓励发展特色产业，激发脱贫人口内生动力，扩大种养殖规模，增加脱贫户收入
A90: 82 | B90: 生产项目（种植/养殖业） | C90: 2023年刘套镇赵庄村村特色种养殖补贴到户项目 | D90: 新建 | E90: 县农业农村局 | F90: 刘套镇 李磊 | G90: 刘套镇 | H90: 赵庄村 | I90: 否 | J90: 扶持27户脱贫户（含监测对象）发展特色种养业 | K90: 2023年12月15日前 | L90: 4.05 | M90: 4.05 | O90: 扶持27户脱贫户发展特色种养业，鼓励其扩大种养殖规模。 | P90: 瓜果种植面积5亩，猪养殖数量60头，羊养殖数量110只， | Q90: 100% | R90: 100% | S90: / | T90: 4.86 | U90: / | V90: / | W90: 27 | X90: 58 | AA90: ≥95% | AB90: 参与项目申报、实施过程监督、完成后受益 | AC90: 以产业补助的形式对脱贫户进行补助，鼓励发展特色产业，激发脱贫人口内生动力，扩大种养殖规模，增加脱贫户收入
A91: 83 | B91: 生产项目（种植/养殖业） | C91: 2023年刘套镇三大家村特色种养殖补贴到户项目 | D91: 新建 | E91: 县农业农村局 | F91: 刘套镇 李磊 | G91: 刘套镇 | H91: 三大家村 | I91: 是 | J91: 扶持9户脱贫户（含监测对象）发展特色种养业 | K91: 2023年12月15日前 | L91: 1.35 | M91: 1.35 | O91: 扶持9户脱贫户发展特色种养业，鼓励其扩大种养殖规模。 | P91: 瓜果种植面积5亩，猪养殖数量6头，羊养殖数量40只， | Q91: 100% | R91: 100% | S91: / | T91: 1.62 | U91: / | V91: / | W91: 9 | X91: 18 | AA91: ≥95% | AB91: 参与项目申报、实施过程监督、完成后受益 | AC91: 以产业补助的形式对脱贫户进行补助，鼓励发展特色产业，激发脱贫人口内生动力，扩大种养殖规模，增加脱贫户收入
A92: 84 | B92: 生产项目（种植/养殖业） | C92: 2023年刘套镇芈集村特色种养殖补贴到户项目 | D92: 新建 | E92: 县农业农村局 | F92: 刘套镇 李磊 | G92: 刘套镇 | H92: 芈集村 | I92: 是 | J92: 扶持110户脱贫户（含监测对象）发展特色种养业 | K92: 2023年12月15日前 | L92: 16.5 | M92: 16.5 | O92: 扶持110户脱贫户发展特色种养业，鼓励其扩大种养殖规模。 | P92: 瓜果种植面积446.9亩，猪养殖数量303头，羊养殖数量85只， | Q92: 100% | R92: 100% | S92: / | T92: 19.8 | U92: / | V92: / | W92: 110 | X92: 246 | AA92: ≥95% | AB92: 参与项目申报、实施过程监督、完成后受益 | AC92: 以产业补助的形式对脱贫户进行补助，鼓励发展特色产业，激发脱贫人口内生动力，扩大种养殖规模，增加脱贫户收入
A93: 85 | B93: 生产项目（种植/养殖业） | C93: 2023年龙城镇人民特色种养殖补贴到户项目 | D93: 新建 | E93: 县农业农村局 | F93: 龙城镇 张跃 | G93: 龙城镇 | H93: 人民村 | I93: 是 | J93: 扶持17户脱贫户（含监测对象）发展特色种养业 | K93: 2023年12月15日前 | L93: =M93+N93 -> 2.55 | M93: 2.55 | O93: 扶持17户脱贫户发展特色种养业，鼓励其扩大种养殖规模。 | P93: 享受特色种养农户养羊168只 | Q93: 100% | R93: 100% | S93: / | T93: 5.1 | U93: / | V93: 5.1 | W93: 17 | X93: 17 | AA93: ≥95% | AB93: 参与项目申报、实施过程监督、完成后受益 | AC93: 以产业补助的形式对脱贫户进行补助，鼓励发展特色产业，激发脱贫人口内生动力，扩大种养殖规模，增加脱贫户收入
A94: 86 | B94: 生产项目（种植/养殖业） | C94: 2023年龙城镇毛郢孜社区特色种养殖补贴到户项目 | D94: 新建 | E94: 县农业农村局 | F94: 龙城镇 张跃 | G94: 龙城镇 | H94: 毛郢孜社区 | I94: 是 | J94: 扶持6户发展特色种养业 | K94: 2023年12月15日前 | L94: 0.9 | M94: 0.9 | O94: 扶持6户脱贫户发展特色种养业，鼓励其扩大种养殖规模。 | P94: 种果树0.8亩，大棚蔬菜1.5亩、养羊40只 | Q94: 100% | R94: 100% | S94: / | T94: 1.489 | U94: / | V94: / | W94: 6 | X94: 11 | AA94: ≥95% | AB94: 参与项目申报、实施过程监督、完成后受益 | AC94: 以产业补助的形式对脱贫户进行补助，鼓励发展特色产业，激发脱贫人口内生动力，扩大种养殖规模，增加脱贫户收入
A95: 87 | B95: 生产项目（种植/养殖业） | C95: 2023年龙城镇马楼社区特色种养殖补贴到户项目 | D95: 新建 | E95: 县农业农村局 | F95: 龙城镇 张跃 | G95: 龙城镇 | H95: 马楼社区 | I95: 否 | J95: 扶持6户脱贫户发展特色种养业 | K95: 2023年12月15日前 | L95: 0.9 | M95: 0.9 | O95: 扶持6户脱贫户发展特色种养业，鼓励其扩大种养殖规模。 | P95: 养猪10头、种植桃树6.6亩、种植大棚菜5亩、种植草莓1.5亩 | Q95: 100% | R95: 100% | S95: / | T95: 1.553 | U95: / | V95: / | W95: 6 | X95: 19 | AA95: ≥95% | AB95: 参与项目申报、实施过程监督、完成后受益 | AC95: 以产业补助的形式对脱贫户进行补助，鼓励发展特色产业，激发脱贫人口内生动力，扩大种养殖规模，增加脱贫户收入
A96: 88 | B96: 生产项目（种植/养殖业） | C96: 2023年龙城镇房庄社区特色种养殖补贴到户项目 | D96: 新建 | E96: 县农业农村局 | F96: 龙城镇 张跃 | G96: 龙城镇 | H96: 房庄社区 | I96: 否 | J96: 扶持8户发展特色种养业 | K96: 2023年12月15日前 | L96: 1.2 | M96: 1.2 | O96: 扶持8户脱贫户发展特色种养业，鼓励其扩大种养殖规模。 | P96: 养羊5头、养猪8头、种植桃树3亩 | Q96: 100% | R96: 100% | S96: / | T96: 1.716 | U96: / | V96: / | W96: 8 | X96: 14 | AA96: ≥95% | AB96: 参与项目申报、实施过程监督、完成后受益 | AC96: 以产业补助的形式对脱贫户进行补助，鼓励发展特色产业，激发脱贫人口内生动力，扩大种养殖规模，增加脱贫户收入
A97: 89 | B97: 生产项目（种植/养殖业） | C97: 2023年龙城镇姬村特色种养殖补贴到户项目 | D97: 新建 | E97: 县农业农村局 | F97: 龙城镇 张跃 | G97: 龙城镇 | H97: 姬村 | I97: 否 | J97: 扶持2户脱贫户（含监测对象）发展特色种养业 | K97: 2023年12月15日前 | L97: 0.3 | M97: 0.3 | O97: 扶持2户脱贫户发展特色种养业，鼓励其扩大种养殖规模。 | P97: 享受特色种养农户种植石榴树4亩 | Q97: 100% | R97: 100% | S97: / | T97: 0.33 | U97: / | V97: 0.33 | W97: 2 | X97: 4 | AA97: ≥95% | AB97: 参与项目申报、实施过程监督、完成后受益 | AC97: 以产业补助的形式对脱贫户进行补助，鼓励发展特色产业，激发脱贫人口内生动力，扩大种养殖规模，增加脱贫户收入
A98: 90 | B98: 生产项目（种植/养殖业） | C98: 2023年龙城镇李台社区特色种养殖补贴到户项目 | D98: 新建 | E98: 县农业农村局 | F98: 龙城镇 张跃 | G98: 龙城镇 | H98: 李台社区 | I98: 否 | J98: 扶持1户发展特色种养业 | K98: 2023年12月15日前 | L98: 0.15 | M98: 0.15 | O98: 扶持1户脱贫户发展特色种养业，鼓励其扩大种养殖规模。 | P98: 养殖山羊40只 | Q98: 100% | R98: 100% | S98: / | T98: 0.5 | U98: / | V98: / | W98: 1 | X98: 2 | AA98: ≥95% | AB98: 参与项目申报、实施过程监督、完成后受益 | AC98: 以产业补助的形式对脱贫户进行补助，鼓励发展特色产业，激发脱贫人口内生动力，扩大种养殖规模，增加脱贫户收入
A99: 91 | B99: 生产项目（种植/养殖业） | C99: 2023年龙城镇岱湖社区特色种养殖补贴到户项目 | D99: 新建 | E99: 县农业农村局 | F99: 龙城镇 张跃 | G99: 龙城镇 | H99: 岱湖社区 | I99: 否 | J99: 扶持4户脱贫户发展特色种养业 | K99: 2023年12月15日前 | L99: 0.6 | M99: 0.6 | O99: 扶持4户脱贫户发展特色种养业，鼓励其扩大种养殖规模。 | P99: 养羊39只 | Q99: 100% | R99: 100% | S99: / | T99: 1.2 | U99: / | V99: / | W99: 4 | X99: 7 | AA99: ≥95% | AB99: 参与项目申报、实施过程监督、完成后受益 | AC99: 以产业补助的形式对脱贫户进行补助，鼓励发展特色产业，激发脱贫人口内生动力，扩大种养殖规模，增加脱贫户收入
A100: 92 | B100: 生产项目（种植/养殖业） | C100: 2023年龙城镇帽山村特色种养殖补贴到户项目 | D100: 新建 | E100: 县农业农村局 | F100: 龙城镇 张跃 | G100: 龙城镇 | H100: 帽山村 | I100: 否 | J100: 扶持22户发展特色种养业 | K100: 2023年12月15日前 | L100: 3.3 | M100: 3.3 | O100: 扶持22户脱贫户发展特色种养业，鼓励其扩大种养殖规模。 | P100: 养羊45只、种植桃树5亩、种植大棚菜2.5亩，种植杏园17亩，种植石榴3亩，葛花8亩。 | Q100: 100% | R100: 100% | S100: / | T100: 7 | U100: / | W100: 22 | X100: 46 | AA100: ≥95% | AB100: 参与项目申报、实施过程监督、完成后受益 | AC100: 以产业补助的形式对脱贫户进行补助，鼓励发展特色产业，激发脱贫人口内生动力，扩大种养殖规模，增加脱贫户收入
A101: 93 | B101: 生产项目（种植/养殖业） | C101: 2023年龙城镇王大庄村特色种养殖补贴到户项目 | D101: 新建 | E101: 县农业农村局 | F101: 龙城镇 张跃 | G101: 龙城镇 | H101: 王大庄村 | I101: 是 | J101: 扶持28户脱贫户发展特色种养业 | K101: 2023年12月15日前 | L101: 4.2 | M101: 4.2 | O101: 扶持28户脱贫户发展特色种养业，鼓励其扩大种养殖规模。 | P101: 羊养殖数量150只，露地蔬菜30亩。 | Q101: 100% | R101: 100% | S101: / | T101: 6.5 | U101: / | V101: / | W101: 28 | X101: 39 | AA101: ≥95% | AB101: 参与项目申报、实施过程监督、完成后受益 | AC101: 以产业补助的形式对脱贫户进行补助，鼓励发展特色产业，激发脱贫人口内生动力，扩大种养殖规模，增加脱贫户收入
A102: 94 | B102: 生产项目（种植/养殖业） | C102: 2023年龙城镇前梅社区特色种养殖补贴到户项目 | D102: 新建 | E102: 县农业农村局 | F102: 龙城镇 张跃 | G102: 龙城镇 | H102: 前梅社区 | I102: 否 | J102: 扶持1户发展特色种养业 | K102: 2023年12月15日前 | L102: 0.15 | M102: 0.15 | O102: 扶持1户脱贫户发展特色种养业，鼓励其扩大种养殖规模。 | P102: 1.7亩大棚蔬菜 | Q102: 100% | R102: 100% | S102: / | T102: 1 | U102: / | V102: / | W102: 1 | X102: 2 | AA102: ≥95% | AB102: 参与项目申报、实施过程监督、完成后受益 | AC102: 以产业补助的形式对脱贫户进行补助，鼓励发展特色产业，激发脱贫人口内生动力，扩大种养殖规模，增加脱贫户收入
A103: 95 | B103: 生产项目（种植/养殖业） | C103: 2023年马井镇麻堤口村特色种养殖补贴到户项目 | D103: 新建 | E103: 县农业农村局 | F103: 马井镇 王伟强 | G103: 马井镇 | H103: 麻堤口村 | I103: 是 | J103: 扶持54户脱贫户（含监测对象）发展特色种养业 | K103: 2023年12月15日前 | L103: 6.62 | M103: 6.62 | O103: 扶持54户脱贫户发展特色种养业，鼓励其扩大种养殖规模。 | P103: 瓜果蔬菜种植面积100.5亩，羊养殖数量133只，露地蔬菜种植面积5亩 | Q103: 100% | R103: 100% | S103: / | T103: 9.93 | U103: / | V103: / | W103: 54 | X103: 106 | AA103: ≥95% | AB103: 参与项目申报、实施过程监督、完成后受益 | AC103: 以产业补助的形式对脱贫户进行补助，鼓励发展特色产业，激发脱贫人口内生动力，扩大种养殖规模，增加脱贫户收入
A104: 96 | B104: 生产项目（种植/养殖业） | C104: 2023年马井镇吴瓦房村特色种养殖补贴到户项目 | D104: 新建 | E104: 县农业农村局 | F104: 马井镇 王伟强 | G104: 马井镇 | H104: 吴瓦房 | I104: 是 | J104: 扶持40户脱贫户（含监测对象）发展特色种养业 | K104: 2023年12月15日前 | L104: 5.110 | M104: 5.110 | O104: 扶持40户脱贫户发展特色种养业，鼓励其扩大种养殖规模。 | P104: 瓜果蔬菜种植面积4亩，羊养殖数量175只，养殖鸭子2000羽，经济作物种植面积17亩 | Q104: 100% | R104: 100% | S104: / | T104: 7.665 | U104: / | V104: / | W104: 40 | X104: 92 | AA104: ≥95% | AB104: 参与项目申报、实施过程监督、完成后受益 | AC104: 以产业补助的形式对脱贫户进行补助，鼓励发展特色产业，激发脱贫人口内生动力，扩大种养殖规模，增加脱贫户收入
A105: 97 | B105: 生产项目（种植/养殖业） | C105: 2023年马井镇孙庄村特色种养殖补贴到户项目 | D105: 新建 | E105: 县农业农村局 | F105: 马井镇 王伟强 | G105: 马井镇 | H105: 孙庄村 | I105: 否 | J105: 扶持49户脱贫户（含监测对象）发展特色种养业 | K105: 2023年12月15日前 | L105: 5.23 | M105: 5.23 | O105: 扶持49户脱贫户发展特色种养业，鼓励其扩大种养殖规模。 | P105: 梨树种植面积75亩，羊养殖数量96只，猪养殖数量3头，经济作物种植面积亩 | Q105: 100% | R105: 100% | S105: / | T105: 6.276 | U105: / | V105: / | W105: 49 | X105: 124 | AA105: ≥95% | AB105: 参与项目申报、实施过程监督、完成后受益 | AC105: 以产业补助的形式对脱贫户进行补助，鼓励发展特色产业，激发脱贫人口内生动力，扩大种养殖规模，增加脱贫户收入
A106: 98 | B106: 生产项目（种植/养殖业） | C106: 2023年马井镇朱庄村特色种养殖补贴到户项目 | D106: 新建 | E106: 县农业农村局 | F106: 马井镇 王伟强 | G106: 马井镇 | H106: 朱庄村 | I106: 否 | J106: 扶持41户脱贫户（含监测对象）发展特色种养业 | K106: 2023年12月15日前 | L106: 5.62 | M106: 5.62 | O106: 扶持41户脱贫户发展特色种养业，鼓励其扩大种养殖规模。 | P106: 瓜果蔬菜种植面积19亩，羊养殖数量291只，猪养殖数量10头，经济作物种植面积亩 | Q106: 100% | R106: 100% | S106: / | T106: 8.43 | U106: / | V106: / | W106: 41 | X106: 177 | AA106: ≥95% | AB106: 参与项目申报、实施过程监督、完成后受益 | AC106: 以产业补助的形式对脱贫户进行补助，鼓励发展特色产业，激发脱贫人口内生动力，扩大种养殖规模，增加脱贫户收入
A107: 99 | B107: 生产项目（种植/养殖业） | C107: 2023年马井镇权楼村特色种养殖补贴到户项目 | D107: 新建 | E107: 县农业农村局 | F107: 马井镇 王伟强 | G107: 马井镇 | H107: 权楼村 | I107: 否 | J107: 扶持41户脱贫户（含监测对象）发展特色种养业 | K107: 2023年12月15日前 | L107: 5.82 | M107: 5.82 | O107: 扶持41户脱贫户发展特色种养业，鼓励其扩大种养殖规模。 | P107: 梨树种植4亩、葡萄大棚2亩、养殖牛2头、养殖羊265只、养殖猪8头 | Q107: 100% | R107: 100% | S107: / | T107: 6.88 | U107: / | V107: / | W107: 41 | X107: 108 | AA107: ≥95% | AB107: 参与项目申报、实施过程监督、完成后受益 | AC107: 以产业补助的形式对脱贫户进行补助，鼓励发展特色产业，激发脱贫人口内生动力，扩大种养殖规模，增加脱贫户收入
A108: 100 | B108: 生产项目（种植/养殖业） | C108: 2023年马井镇许破楼村特色种养殖补贴到户项目 | D108: 新建 | E108: 县农业农村局 | F108: 马井镇 王伟强 | G108: 马井镇 | H108: 许破楼村 | I108: 否 | J108: 扶持32户脱贫户（含监测对象）发展特色种养业 | K108: 2023年12月15日前 | L108: 4.49 | M108: 4.49 | O108: 扶持32户脱贫户发展特色种养业，鼓励其扩大种养殖规模。 | P108: 羊养殖数量217只，猪养殖数量4头，牛养殖数量2头 | Q108: 100% | R108: 100% | S108: / | T108: 6.735 | U108: / | V108: / | W108: 32 | X108: 90 | AA108: ≥95% | AB108: 参与项目申报、实施过程监督、完成后受益 | AC108: 以产业补助的形式对脱贫户进行补助，鼓励发展特色产业，激发脱贫人口内生动力，扩大种养殖规模，增加脱贫户收入
A109: 101 | B109: 生产项目（种植/养殖业） | C109: 2023年马井镇朱集村特色种养殖补贴到户项目 | D109: 新建 | E109: 县农业农村局 | F109: 马井镇 王伟强 | G109: 马井镇 | H109: 朱集村 | I109: 否 | J109: 扶持32户脱贫户发展特色种养业 | K109: 2023年12月15日前 | L109: 4.22 | M109: 4.22 | O109: 扶持32户脱贫户发展特色种养业，鼓励其扩大种养殖规模。 | P109: 瓜果蔬菜种植面积16.2亩，羊养殖数量184只，猪养殖数量20头， | Q109: 100% | R109: 100% | S109: / | T109: 4.22 | U109: / | V109: / | W109: 32 | X109: 69 | AA109: ≥95% | AB109: 参与项目申报、实施过程监督、完成后受益 | AC109: 以产业补助的形式对脱贫户进行补助，鼓励发展特色产业，激发脱贫人口内生动力，扩大种养殖规模，增加脱贫户收入
A110: 102 | B110: 生产项目（种植/养殖业） | C110: 2023年马井镇郝庄村特色种养殖补贴到户项目 | D110: 新建 | E110: 县农业农村局 | F110: 马井镇 王伟强 | G110: 马井镇 | H110: 郝庄村 | I110: 否 | J110: 扶持47户脱贫户（含监测对象）发展特色种养业 | K110: 2023年12月15日前 | L110: 6.7 | M110: 6.7 | O110: 扶持47户脱贫户发展特色种养业，鼓励其扩大种养殖规模。 | P110: 瓜果蔬菜种植面积9.8亩，羊养殖数量336只，猪养殖数量40头，牛养殖数量3头，鸡养殖数量5000羽， | Q110: 100% | R110: 100% | S110: / | T110: 12.6 | U110: / | V110: / | W110: 47 | X110: 110 | AA110: ≥95% | AB110: 参与项目申报、实施过程监督、完成后受益 | AC110: 以产业补助的形式对脱贫户进行补助，鼓励发展特色产业，激发脱贫人口内生动力，扩大种养殖规模，增加脱贫户收入
A111: 103 | B111: 生产项目（种植/养殖业） | C111: 2023年马井镇吴九店村特色种养殖补贴到户项目 | D111: 新建 | E111: 县农业农村局 | F111: 马井镇 王伟强 | G111: 马井镇 | H111: 吴九店村 | I111: 否 | J111: 扶持53户脱贫户（含监测对象）发展特色种养业 | K111: 2023年12月15日前 | L111: 6.786 | M111: 6.786 | O111: 扶持53户脱贫户发展特色种养业，鼓励其扩大种养殖规模。 | P111: 瓜果蔬菜种植面积84亩，羊养殖数量174只，猪养殖数量5头，经济作物种植面积亩 | Q111: 100% | R111: 100% | S111: / | T111: 10.15 | U111: / | V111: / | W111: 53 | X111: 112 | AA111: ≥95% | AB111: 参与项目申报、实施过程监督、完成后受益 | AC111: 以产业补助的形式对脱贫户进行补助，鼓励发展特色产业，激发脱贫人口内生动力，扩大种养殖规模，增加脱贫户收入
A112: 104 | B112: 生产项目（种植/养殖业） | C112: 2023年马井镇曲里铺村特色种养殖补贴到户项目 | D112: 新建 | E112: 县农业农村局 | F112: 马井镇 王伟强 | G112: 马井镇 | H112: 曲里铺村 | I112: 是 | J112: 扶持28户脱贫户（含监测对象）发展特色种养业 | K112: 2023年12月15日前 | L112: 4.2 | M112: 4.2 | O112: 扶持28户脱贫户发展特色种养业，鼓励其扩大种养殖规模。 | P112: 瓜果蔬菜种植面积0亩，羊养殖数量176只，猪养殖数量4头，牛养殖数量13头，经济作物种植面积0亩 | Q112: 100% | R112: 100% | S112: / | T112: 6.3 | U112: / | V112: / | W112: 28 | X112: 59 | AA112: ≥95% | AB112: 参与项目申报、实施过程监督、完成后受益 | AC112: 以产业补助的形式对脱贫户进行补助，鼓励发展特色产业，激发脱贫人口内生动力，扩大种养殖规模，增加脱贫户收入
A113: 105 | B113: 生产项目（种植/养殖业） | C113: 2023年马井镇镇长征村特色种养殖补贴到户项目 | D113: 新建 | E113: 县农业农村局 | F113: 马井镇 王伟强 | G113: 马井镇 | H113: 长征村 | I113: 是 | J113: 扶持23户脱贫户（含监测对象）发展特色种养业 | K113: 2023年12月15日前 | L113: 3.21 | M113: 3.21 | O113: 扶持23户脱贫户发展特色种养业，鼓励其扩大种养殖规模。 | P113: 瓜果蔬菜种植面积21亩，羊养殖数量112只，猪养殖数量8头 | Q113: 100% | R113: 100% | S113: / | T113: 7 | U113: / | V113: / | W113: 23 | X113: 52 | AA113: ≥95% | AB113: 参与项目申报、实施过程监督、完成后受益 | AC113: 以产业补助的形式对脱贫户进行补助，鼓励发展特色产业，激发脱贫人口内生动力，扩大种养殖规模，增加脱贫户收入
A114: 106 | B114: 生产项目（种植/养殖业） | C114: 2023年马井镇马井村特色种养殖补贴到户项目 | D114: 新建 | E114: 县农业农村局 | F114: 马井镇 王伟强 | G114: 马井镇 | H114: 马井村 | I114: 否 | J114: 扶持35户脱贫户（含监测对象）发展特色种养业 | K114: 2023年12月15日前 | L114: 4.79 | M114: 4.79 | O114: 扶持35户脱贫户发展特色种养业，鼓励其扩大种养殖规模。 | P114: 瓜果蔬菜种植面积7亩，羊养殖数量219只，猪养殖数量20头，经济作物种植面积亩 | Q114: 100% | R114: 100% | S114: / | T114: 9.54 | U114: / | V114: / | W114: 35 | X114: 81 | AA114: ≥95% | AB114: 参与项目申报、实施过程监督、完成后受益 | AC114: 以产业补助的形式对脱贫户进行补助，鼓励发展特色产业，激发脱贫人口内生动力，扩大种养殖规模，增加脱贫户收入
A115: 107 | B115: 生产项目（种植/养殖业） | C115: 2023年马井镇黄楼村特色种养殖补贴到户项目 | D115: 新建 | E115: 县农业农村局 | F115: 马井镇 王伟强 | G115: 马井镇 | H115: 黄楼村 | I115: 否 | J115: 扶持36户脱贫户（含监测对象）发展特色种养业 | K115: 2023年12月15日前 | L115: =M115+N115 -> 4.863 | M115: 4.863 | O115: 扶持36户脱贫户发展特色种养业，鼓励其扩大种养殖规模。 | P115: 瓜果蔬菜面积24.7亩，猪养殖数量51头，牛20头、羊养殖数量202头、精养鱼塘4.5亩。 | Q115: 100% | R115: 100% | S115: / | T115: 7 | U115: / | V115: / | W115: 36 | X115: 89 | AA115: ≥95% | AB115: 参与项目申报、实施过程监督、完成后受益 | AC115: 以产业补助的形式对脱贫户进行补助，鼓励发展特色产业，激发脱贫人口内生动力，扩大种养殖规模，增加脱贫户收入
A116: 108 | B116: 生产项目（种植/养殖业） | C116: 2023年马井镇道口村特色种养殖补贴到户项目 | D116: 新建 | E116: 县农业农村局 | F116: 马井镇 王伟强 | G116: 马井镇 | H116: 道口村 | I116: 是 | J116: 扶持41户脱贫户（含监测对象）发展特色种养业 | K116: 2023年12月15日前 | L116: 4.401 | M116: 4.401 | O116: 扶持41户脱贫户发展特色种养业，鼓励其扩大种养殖规模。 | P116: 瓜果蔬菜种植面积77.55亩，羊养殖数量65只，猪养殖数量0头，经济作物种植面积亩 | Q116: 100% | R116: 100% | S116: / | T116: 6.5 | U116: / | V116: / | W116: 41 | X116: 93 | AA116: ≥95% | AB116: 参与项目申报、实施过程监督、完成后受益 | AC116: 以产业补助的形式对脱贫户进行补助，鼓励发展特色产业，激发脱贫人口内生动力，扩大种养殖规模，增加脱贫户收入
A117: 109 | B117: 生产项目（种植/养殖业） | C117: 2023年马井镇王楼村特色种养殖补贴到户项目 | D117: 新建 | E117: 县农业农村局 | F117: 马井镇 王伟强 | G117: 马井镇 | H117: 王楼村 | I117: 否 | J117: 扶持58户脱贫户（含监测对象）发展特色种养业 | K117: 2023年12月15日前 | L117: 6.905 | M117: 6.905 | O117: 扶持58户脱贫户发展特色种养业，鼓励其扩大种养殖规模。 | P117: 瓜果蔬菜种植面积54亩，羊养殖数量203只，猪养殖数量65头，鸡养殖数量400只 | Q117: 100% | R117: 100% | S117: / | T117: 8.3 | U117: / | V117: / | W117: 58 | X117: 152 | AA117: ≥95% | AB117: 参与项目申报、实施过程监督、完成后受益 | AC117: 以产业补助的形式对脱贫户进行补助，鼓励发展特色产业，激发脱贫人口内生动力，扩大种养殖规模，增加脱贫户收入
A118: 110 | B118: 生产项目（种植/养殖业） | C118: 2023年青龙集镇青龙集村特色种养殖补贴到户项目 | D118: 新建 | E118: 县农业农村局 | F118: 青龙集镇 况美彩 | G118: 青龙集镇 | H118: 青龙集村 | I118: 是 | J118: 扶持16户脱贫户（含监测对象）发展特色种养业 | K118: 2023年12月15日前 | L118: 2.27 | M118: 2.27 | O118: 扶持16户脱贫户发展特色种养业，鼓励其扩大种养殖规模。 | P118: 羊养殖数量165只 | Q118: 100% | R118: 100% | S118: / | T118: 3 | U118: / | V118: / | W118: 16 | X118: 51 | AA118: ≥95% | AB118: 参与项目申报、实施过程监督、完成后受益 | AC118: 以产业补助的形式对脱贫户进行补助，鼓励发展特色产业，激发脱贫人口内生动力，扩大种养殖规模，增加脱贫户收入
A119: 111 | B119: 生产项目（种植/养殖业） | C119: 2023年青龙集镇路口村特色种养殖补贴到户项目 | D119: 新建 | E119: 县农业农村局 | F119: 青龙集镇 况美彩 | G119: 青龙集镇 | H119: 路口村 | I119: 是 | J119: 扶持45户脱贫户（含监测对象）发展特色种养业 | K119: 2023年12月15日前 | L119: 6.39 | M119: 6.39 | O119: 扶持45户脱贫户发展特色种养业，鼓励其扩大种养殖规模。 | P119: 大棚蔬菜种植面积3亩，羊养殖数量409只，猪养殖数量4头，牛养殖数量30头。 | Q119: 100% | R119: 100% | S119: / | T119: 8 | U119: / | V119: / | W119: 45 | X119: 120 | AA119: ≥95% | AB119: 参与项目申报、实施过程监督、完成后受益 | AC119: 以产业补助的形式对脱贫户进行补助，鼓励发展特色产业，激发脱贫人口内生动力，扩大种养殖规模，增加脱贫户收入
A120: 112 | B120: 生产项目（种植/养殖业） | C120: 2023年青龙集镇胡庄村特色种养殖补贴到户项目 | D120: 新建 | E120: 县农业农村局 | F120: 青龙集镇 况美彩 | G120: 青龙集镇 | H120: 胡庄村 | I120: 是 | J120: 扶持73户脱贫户（含监测对象）发展特色种养业 | K120: 2023年12月15日前 | L120: 10.02 | M120: 10.02 | O120: 扶持73户脱贫户发展特色种养业，鼓励其扩大种养殖规模。 | P120: 瓜果蔬菜种植面积43.5亩，羊养殖数量478只，猪养殖数量22头，牛养殖数量13头，精养鱼塘3亩 | Q120: 100% | R120: 100% | S120: / | T120: 13 | U120: / | V120: / | W120: 73 | X120: 206 | AA120: ≥95% | AB120: 参与项目申报、实施过程监督、完成后受益 | AC120: 以产业补助的形式对脱贫户进行补助，鼓励发展特色产业，激发脱贫人口内生动力，扩大种养殖规模，增加脱贫户收入
A121: 113 | B121: 生产项目（种植/养殖业） | C121: 2023年青龙集镇黄月店村特色种养殖补贴到户项目 | D121: 新建 | E121: 县农业农村局 | F121: 青龙集镇 况美彩 | G121: 青龙集镇 | H121: 黄月店村 | I121: 否 | J121: 扶持53户脱贫户（含监测对象）发展特色种养业 | K121: 2023年12月15日前 | L121: 7.55 | M121: 7.55 | O121: 扶持53户脱贫户发展特色种养业，鼓励其扩大种养殖规模。 | P121: 大棚蔬菜种植面积3亩，羊养殖数量455只，猪养殖数量22头， | Q121: 100% | R121: 100% | S121: / | T121: 10 | U121: / | V121: / | W121: 53 | X121: 162 | AA121: ≥95% | AB121: 参与项目申报、实施过程监督、完成后受益 | AC121: 以产业补助的形式对脱贫户进行补助，鼓励发展特色产业，激发脱贫人口内生动力，扩大种养殖规模，增加脱贫户收入
A122: 114 | B122: 生产项目（种植/养殖业） | C122: 2023年青龙集镇张鲁庄村特色种养殖补贴到户项目 | D122: 新建 | E122: 县农业农村局 | F122: 青龙集镇 况美彩 | G122: 青龙集镇 | H122: 张鲁庄村 | I122: 否 | J122: 扶持21户脱贫户（含监测对象）发展特色种养业 | K122: 2023年12月15日前 | L122: 2.95 | M122: 2.95 | O122: 扶持21户脱贫户发展特色种养业，鼓励其扩大种养殖规模。 | P122: 瓜果蔬菜种植面积15亩，羊养殖数量153只，猪养殖数量21头， | Q122: 100% | R122: 100% | S122: / | T122: 4 | U122: / | V122: / | W122: 21 | X122: 70 | AA122: ≥95% | AB122: 参与项目申报、实施过程监督、完成后受益 | AC122: 以产业补助的形式对脱贫户进行补助，鼓励发展特色产业，激发脱贫人口内生动力，扩大种养殖规模，增加脱贫户收入
A123: 115 | B123: 生产项目（种植/养殖业） | C123: 2023年青龙集镇邱庄村特色种养殖补贴到户项目 | D123: 新建 | E123: 县农业农村局 | F123: 青龙集镇 况美彩 | G123: 青龙集镇 | H123: 邱庄村 | I123: 否 | J123: 扶持46户脱贫户（含监测对象）发展特色种养业 | K123: 2023年12月15日前 | L123: 6.72 | M123: 6.72 | O123: 扶持46户脱贫户发展特色种养业，鼓励其扩大种养殖规模。 | P123: 羊养殖数量515只，猪养殖数量20头 | Q123: 100% | R123: 100% | S123: / | T123: 9 | U123: / | V123: / | W123: 46 | X123: 113 | AA123: ≥95% | AB123: 参与项目申报、实施过程监督、完成后受益 | AC123: 以产业补助的形式对脱贫户进行补助，鼓励发展特色产业，激发脱贫人口内生动力，扩大种养殖规模，增加脱贫户收入
A124: 116 | B124: 生产项目（种植/养殖业） | C124: 2023年圣泉镇营子社区特色种养殖补贴到户项目 | D124: 新建 | E124: 县农业农村局 | F124: 圣泉镇 田野 | G124: 圣泉镇 | H124: 营子社区 | I124: 是 | J124: 扶持15户脱贫户发展特色种养业 | K124: 2023年12月15日前 | L124: 2.12 | M124: 2.12 | O124: 扶持15户脱贫户发展特色种养业，鼓励其扩大种养殖规模。 | P124: 种植面积约8亩，养殖羊数量80只，养猪8头。 | Q124: 100% | R124: 100% | S124: / | T124: 4.5 | U124: / | V124: / | W124: 15 | X124: 34 | AA124: ≥95% | AB124: 参与项目申报、实施过程监督、完成后受益 | AC124: 以产业补助的形式对脱贫户进行补助，鼓励发展特色产业，激发脱贫人口内生动力，扩大种养殖规模，增加脱贫户收入
A125: 117 | B125: 生产项目（种植/养殖业） | C125: 2023年圣泉镇袁新庄社区特色种养殖补贴到户项目 | D125: 新建 | E125: 县农业农村局 | F125: 圣泉镇 田野 | G125: 圣泉镇 | H125: 袁新庄社区 | I125: 否 | J125: 扶持25户脱贫户发展特色种养业 | K125: 2023年12月15日前 | L125: 3.4 | M125: 3.4 | O125: 扶持25户脱贫户发展特色种养业，鼓励其扩大种养殖规模。 | P125: 种植果树面积约32.7亩，大棚3亩，养殖羊数量56只，养猪20头，养鸡1500羽。 | Q125: 100% | R125: 100% | S125: / | T125: 7.7 | U125: / | V125: / | W125: 25 | X125: 65 | AA125: ≥95% | AB125: 参与项目申报、实施过程监督、完成后受益 | AC125: 以产业补助的形式对脱贫户进行补助，鼓励发展特色产业，激发脱贫人口内生动力，扩大种养殖规模，增加脱贫户收入
A126: 118 | B126: 生产项目（种植/养殖业） | C126: 2023年圣泉镇王山社区特色种养殖补贴到户项目 | D126: 新建 | E126: 县农业农村局 | F126: 圣泉镇 田野 | G126: 圣泉镇 | H126: 王山社区 | I126: 否 | J126: 扶持18户脱贫户发展特色种养业 | K126: 2023年12月15日前 | L126: 2.11 | M126: 2.11 | O126: 扶持18户脱贫户发展特色种养业，鼓励其扩大种养殖规模。 | P126: 种植面积约29亩，养殖羊数量49只，猪27头。 | Q126: 100% | R126: 100% | S126: / | T126: 4.5 | U126: / | V126: / | W126: 18 | X126: 39 | AA126: ≥95% | AB126: 参与项目申报、实施过程监督、完成后受益 | AC126: 以产业补助的形式对脱贫户进行补助，鼓励发展特色产业，激发脱贫人口内生动力，扩大种养殖规模，增加脱贫户收入
A127: 119 | B127: 生产项目（种植/养殖业） | C127: 2023年圣泉镇岗子村特色种养殖补贴到户项目 | D127: 新建 | E127: 县农业农村局 | F127: 圣泉镇 田野 | G127: 圣泉镇 | H127: 岗子村 | I127: 否 | J127: 扶持33户脱贫户发展特色种养业 | K127: 2023年12月15日前 | L127: 4.407 | M127: 4.407 | O127: 扶持33户脱贫户发展特色种养业，鼓励其扩大种养殖规模。 | P127: 蔬菜大棚种植面积12.6亩，猪养殖数量8头，羊养殖数量84只，牛养殖4头，鱼塘9亩，梨树种植29.3亩，桃树种植8亩。 | Q127: 100% | R127: 100% | S127: 100% | T127: 8 | W127: 33 | X127: 76 | AA127: ≥95% | AB127: 项目申报、实施过程监督、带动产业发展 | AC127: 以产业补助的形式对脱贫户进行补助，鼓励发展特色产业，激发脱贫人口内生动力，增加脱贫户收入
A128: 120 | B128: 生产项目（种植/养殖业） | C128: 2023年圣泉镇黄安子社区特色种养殖补贴到户项目 | D128: 新建 | E128: 县农业农村局 | F128: 圣泉镇 田野 | G128: 圣泉镇 | H128: 黄安子社区 | I128: 否 | J128: 扶持24户脱贫户发展特色种养业 | K128: 2023年12月15日前 | L128: 2.808 | M128: 2.808 | O128: 扶持24户脱贫户发展特色种养业，鼓励其扩大种养殖规模。 | P128: 种植果树面积约12.2亩，养殖羊数量98只，养猪9头。 | Q128: 100% | R128: 100% | S128: / | T128: 6 | U128: / | V128: / | W128: 24 | X128: 55 | AA128: ≥95% | AB128: 参与项目申报、实施过程监督、完成后受益 | AC128: 以产业补助的形式对脱贫户进行补助，鼓励发展特色产业，激发脱贫人口内生动力，扩大种养殖规模，增加脱贫户收入
A129: 121 | B129: 生产项目（种植/养殖业） | C129: 2023年圣泉镇北城集社区特色种养殖补贴到户项目 | D129: 新建 | E129: 县农业农村局 | F129: 圣泉镇 田野 | G129: 圣泉镇 | H129: 北城集社区 | I129: 是 | J129: 扶持62户脱贫户发展特色种养业 | K129: 2023年12月15日前 | L129: 7.66 | M129: 7.66 | O129: 扶持62户脱贫户发展特色种养业，鼓励其扩大种养殖规模。 | P129: 种植桃树约147亩，梨树约53亩 | Q129: 100% | R129: 100% | S129: / | T129: 14.5 | U129: / | W129: 62 | X129: 140 | AA129: ≥95% | AB129: 参与项目申报、实施过程监督、完成后受益 | AC129: 以产业补助的形式对脱贫户进行补助，鼓励发展特色产业，激发脱贫人口内生动力，扩大种养殖规模，增加脱贫户收入
A130: 122 | B130: 生产项目（种植/养殖业） | C130: 2023年圣泉镇红柳树村特色种养殖补贴到户项目 | D130: 新建 | E130: 县农业农村局 | F130: 圣泉镇 田野 | G130: 圣泉镇 | H130: 红柳树村 | I130: 否 | J130: 扶持26户脱贫户发展特色种养业 | K130: 2023年12月15日前 | L130: 3.63 | M130: 3.63 | O130: 扶持26户脱贫户发展特色种养业 | P130: 猪养殖数量28头，羊养殖数量118只，葡萄种植7亩，桃树种植2亩。 | Q130: 100% | R130: 100% | S130: 100% | T130: 5 | U130: / | V130: / | W130: 26 | X130: 69 | AA130: ≥95% | AB130: 项目申报、实施过程监督、带动产业发展 | AC130: 以产业补助的形式对脱贫户进行补助，鼓励发展特色产业，激发脱贫人口内生动力，增加脱贫户收入
A131: 123 | B131: 生产项目（种植/养殖业） | C131: 2023年圣泉镇金黄庄社区特色种养殖补贴到户项目 | D131: 新建 | E131: 县农业农村局 | F131: 圣泉镇 田野 | G131: 圣泉镇 | H131: 金黄庄社区 | I131: 否 | J131: 扶持35户脱贫户发展特色种养业 | K131: 2023年12月15日前 | L131: 3.56 | M131: 3.56 | O131: 扶持35户脱贫户发展特色种养业，鼓励其扩大种养殖规模。 | P131: 羊养殖数量39只，豌豆种植4亩，桃树种植44.5亩，蔬菜大棚种植2亩，梨树种植20亩。 | Q131: 100% | R131: 100% | S131: 100% | T131: 10 | U131: / | V131: / | W131: 35 | X131: 71 | AA131: ≥95% | AB131: 项目申报、实施过程监督、带动产业发展 | AC131: 以产业补助的形式对脱贫户进行补助，鼓励发展特色产业，激发脱贫人口内生动力，增加脱贫户收入
A132: 124 | B132: 生产项目（种植/养殖业） | C132: 2023年圣泉镇郑腰庄社区特色种养殖补贴到户项目 | D132: 新建 | E132: 县农业农村局 | F132: 圣泉镇 田野 | G132: 圣泉镇 | H132: 郑腰庄社区 | I132: 否 | J132: 扶持23户脱贫户发展特色种养业 | K132: 2023年12月15日前 | L132: 2.702 | M132: 2.702 | O132: 扶持23户脱贫户发展特色种养业，鼓励其扩大种养殖规模。 | P132: 羊养殖数量48头，桃树9.2亩，杏树15.1亩，梨树3亩.花生3亩，红薯7亩，养牛6头。 | Q132: 100% | R132: 100% | S132: / | T132: 6 | U132: / | W132: 23 | X132: 51 | AA132: ≥95% | AB132: 参与项目申报、实施过程监督、完成后受益 | AC132: 以产业补助的形式对脱贫户进行补助，鼓励发展特色产业，激发脱贫人口内生动力，扩大种养殖规模，增加脱贫户收入
A133: 125 | B133: 生产项目（种植/养殖业） | C133: 2023年圣泉镇柴庄社区特色种养殖补贴到户项目 | D133: 新建 | E133: 县农业农村局 | F133: 圣泉镇 田野 | G133: 圣泉镇 | H133: 柴庄社区 | I133: 否 | J133: 扶持32户脱贫户发展特色种养业 | K133: 2023年12月15日前 | L133: 3.704 | M133: 3.704 | O133: 扶持32户脱贫户发展特色种养业，鼓励其扩大种养殖规模。 | P133: 羊养殖数量122只，种植蔬菜大棚2亩，桃树种植3.6亩，种植露地蔬菜2亩，苹果树种植3亩，葡萄树8.5亩，艾草5亩。 | Q133: 100% | R133: 100% | S133: 100% | T133: 8 | U133: / | V133: / | W133: 32 | X133: 69 | AA133: ≥95% | AB133: 项目申报、实施过程监督、带动产业发展 | AC133: 以产业补助的形式对脱贫户进行补助，鼓励发展特色产业，激发脱贫人口内生动力，增加脱贫户收入
A134: 126 | B134: 生产项目（种植/养殖业） | C134: 2023年圣泉镇俞庄社区特色种养殖补贴到户项目 | D134: 新建 | E134: 县农业农村局 | F134: 圣泉镇 田野 | G134: 圣泉镇 | H134: 俞庄社区 | I134: 否 | J134: 扶持53户脱贫户发展特色种养业 | K134: 2023年12月15日前 | L134: 7.339 | M134: 7.339 | O134: 扶持53户脱贫户发展特色种养业，鼓励其扩大种养殖规模。 | P134: 种植面积约29.4亩，养殖羊数量290头。 | Q134: 100% | R134: 100% | S134: / | T134: 13 | U134: / | V134: / | W134: 53 | X134: 110 | AA134: ≥95% | AB134: 参与项目申报、实施过程监督、完成后受益 | AC134: 以产业补助的形式对脱贫户进行补助，鼓励发展特色产业，激发脱贫人口内生动力，扩大种养殖规模，增加脱贫户收入
A135: 127 | B135: 生产项目（种植/养殖业） | C135: 2023年圣泉镇穆集社区特色种养殖补贴到户项目 | D135: 新建 | E135: 县农业农村局 | F135: 圣泉镇 田野 | G135: 圣泉镇 | H135: 穆集社区 | I135: 是 | J135: 扶持22户脱贫户发展特色种养业 | K135: 2023年12月15日前 | L135: 3.142 | M135: 3.142 | O135: 扶持22户脱贫户发展特色种养业，鼓励其扩大种养殖规模。 | P135: 羊养殖数量88只，猪养殖34头，桃树种植11.3亩，蔬菜大棚种植4亩，梨树种植5亩。 | Q135: 100% | R135: 100% | S135: 100% | T135: 6 | U135: / | V135: / | W135: 22 | X135: 57 | AA135: ≥95% | AB135: 项目申报、实施过程监督、带动产业发展 | AC135: 以产业补助的形式对脱贫户进行补助，鼓励发展特色产业，激发脱贫人口内生动力，增加脱贫户收入
A136: 128 | B136: 生产项目（种植/养殖业） | C136: 2023年圣泉镇单楼村特色种养殖补贴到户项目 | D136: 新建 | E136: 县农业农村局 | F136: 圣泉镇 田野 | G136: 圣泉镇 | H136: 单楼村 | I136: 是 | J136: 扶持66户脱贫户发展特色种养业 | K136: 2023年12月15日前 | L136: 8.31 | M136: 8.31 | O136: 扶持66户脱贫户发展特色种养业，鼓励其扩大种养殖规模。 | P136: 羊养殖数量34只，猪养殖4头，桃树种植112.5亩，梨树种植78亩。 | Q136: 100% | R136: 100% | S136: 100% | T136: 12 | U136: / | V136: / | W136: 66 | X136: 175 | AA136: ≥95% | AB136: 项目申报、实施过程监督、带动产业发展 | AC136: 以产业补助的形式对脱贫户进行补助，鼓励发展特色产业，激发脱贫人口内生动力，增加脱贫户收入
A137: 129 | B137: 生产项目（种植/养殖业） | C137: 2023年圣泉镇郭庄社区特色种养殖补贴到户项目 | D137: 新建 | E137: 县农业农村局 | F137: 圣泉镇 田野 | G137: 圣泉镇 | H137: 郭庄社区 | I137: 是 | J137: 扶持9户脱贫户发展特色种养业 | K137: 2023年12月15日前 | L137: 1.18 | M137: 1.18 | O137: 扶持9户脱贫户发展特色种养业，鼓励其扩大种养殖规模。 | P137: 羊养殖数量32只，猪养殖10头，桃树种植4亩，大棚葡萄种植3.5亩 | Q137: 100% | R137: 100% | S137: 100% | T137: 2 | U137: / | V137: / | W137: 9 | X137: 17 | AA137: ≥95% | AB137: 项目申报、实施过程监督、带动产业发展 | AC137: 以产业补助的形式对脱贫户进行补助，鼓励发展特色产业，激发脱贫人口内生动力，增加脱贫户收入
A138: 130 | B138: 生产项目（种植/养殖业） | C138: 2023年石林乡魏楼村特色种养殖补贴到户项目 | D138: 新建 | E138: 县农业农村局 | F138: 石林乡 杨超峰 | G138: 石林乡 | H138: 魏楼村 | I138: 否 | J138: 特色种养直补到户60户脱贫户（含监测对象） | K138: 2023年12月15日前 | L138: 9 | M138: 9 | O138: 扶持60户脱贫户发展特色种养业，鼓励其扩大种养殖规模。 | P138: 养羊260只、养牛20只、养猪10只、养鸡300只、养鸭300只，种植桃树25亩。 | Q138: 100% | R138: 100% | S138: / | T138: 21.6 | U138: / | V138: / | W138: 60 | X138: 123 | AA138: ≥95% | AB138: 参与项目申报、实施过程监督、完成后受益 | AC138: 以产业补助的形式对脱贫户进行补助，鼓励发展特色产业，激发脱贫人口内生动力，扩大种养殖规模，增加脱贫户收入
A139: 131 | B139: 生产项目（种植/养殖业） | C139: 2023年石林乡崔阁村特色种养殖补贴到户项目 | D139: 新建 | E139: 县农业农村局 | F139: 石林乡 杨超峰 | G139: 石林乡 | H139: 崔阁村 | I139: 否 | J139: 特色种养直补到户90户脱贫户（含监测对象） | K139: 2023年12月15日前 | L139: 13.5 | M139: 13.5 | O139: 扶持90户脱贫户发展特色种养业，鼓励其扩大种养殖规模。 | P139: 猪养殖数量20头，羊养殖数量430只,种植果树5亩，种植中药材5亩。 | Q139: 100% | R139: 100% | S139: / | T139: 32.4 | U139: / | V139: / | W139: 90 | X139: 143 | AA139: ≥95% | AB139: 参与项目申报、实施过程监督、完成后受益 | AC139: 以产业补助的形式对脱贫户进行补助，鼓励发展特色产业，激发脱贫人口内生动力，扩大种养殖规模，增加脱贫户收入
A140: 132 | B140: 生产项目（种植/养殖业） | C140: 2023年石林乡朱大楼村特色种养殖补贴到户项目 | D140: 新建 | E140: 县农业农村局 | F140: 石林乡 杨超峰 | G140: 石林乡 | H140: 朱大楼村 | I140: 否 | J140: 特色种养直补到户50户脱贫户（含监测对象） | K140: 2023年12月15日前 | L140: 7.5 | M140: 7.5 | O140: 扶持50户脱贫户发展特色种养业，鼓励其扩大种养殖规模。 | P140: 羊养殖300只、猪养殖100只、花椒树10亩、肉牛10头、露地蔬菜6亩 | Q140: 100% | R140: 100% | S140: / | T140: 18 | U140: / | V140: / | W140: 50 | X140: 85 | AA140: ≥95% | AB140: 参与项目申报、实施过程监督、完成后受益 | AC140: 以产业补助的形式对脱贫户进行补助，鼓励发展特色产业，激发脱贫人口内生动力，扩大种养殖规模，增加脱贫户收入
A141: 147 | B141: 生产项目（种植/养殖业） | C141: 2023年石林乡石林村特色种养殖补贴到户项目 | D141: 新建 | E141: 县农业农村局 | F141: 石林乡 杨超峰 | G141: 石林乡 | H141: 石林村 | I141: 是 | J141: 特色种养直补到户40户脱贫户（含监测对象） | K141: 2023年12月15日前 | L141: 6 | M141: 6 | O141: 扶持40户脱贫户发展特色种养业，鼓励其扩大种养殖规模。 | P141: 养羊数量280.蔬菜种植5亩，猪养殖15只 ，养鸡500只 | Q141: 100% | R141: 100% | S141: / | T141: 14.4 | U141: / | V141: / | W141: 40 | X141: 85 | AA141: ≥95% | AB141: 参与项目申报、实施过程监督、完成后受益 | AC141: 以产业补助的形式对脱贫户进行补助，鼓励发展特色产业，激发脱贫人口内生动力，扩大种养殖规模，增加脱贫户收入
A142: 148 | B142: 生产项目（种植/养殖业） | C142: 2023年石林乡陶楼村特色种养殖补贴到户项目 | D142: 新建 | E142: 县农业农村局 | F142: 石林乡 杨超峰 | G142: 石林乡 | H142: 陶楼村 | I142: 是 | J142: 特色种养直补到户75户脱贫户（含监测对象） | K142: 2023年12月15日前 | L142: 11.25 | M142: 11.25 | O142: 扶持75户脱贫户发展特色种养业，鼓励其扩大种养殖规模。 | P142: 羊养殖数量350只，鸡养殖数量600只，猪9头，牛4头蔬菜种植8亩 | Q142: 100% | R142: 100% | S142: / | T142: 26.4 | U142: / | V142: / | W142: 75 | X142: 195 | AA142: ≥95% | AB142: 参与项目申报、实施过程监督、完成后受益 | AC142: 以产业补助的形式对脱贫户进行补助，鼓励发展特色产业，激发脱贫人口内生动力，扩大种养殖规模，增加脱贫户收入
A143: 149 | B143: 生产项目（种植/养殖业） | C143: 2023年石林乡李庄村特色种养殖补贴到户项目 | D143: 新建 | E143: 县农业农村局 | F143: 石林乡 杨超峰 | G143: 石林乡 | H143: 李庄村 | I143: 是 | J143: 特色种养直补到户70户脱贫户（含监测对象） | K143: 2023年12月15日前 | L143: 10.5 | M143: 10.5 | O143: 扶持70户脱贫户发展特色种养业，鼓励其扩大种养殖规模。 | P143: 羊养殖560只 | Q143: 100% | R143: 100% | S143: / | T143: 25.2 | U143: / | V143: / | W143: 70 | X143: 171 | AA143: ≥95% | AB143: 参与项目申报、实施过程监督、完成后受益 | AC143: 以产业补助的形式对脱贫户进行补助，鼓励发展特色产业，激发脱贫人口内生动力，扩大种养殖规模，增加脱贫户收入
A144: 150 | B144: 生产项目（种植/养殖业） | C144: 2023年孙圩子镇程蒋山村特色种养殖补贴到户项目 | D144: 新建 | E144: 县农业农村局 | F144: 孙圩子镇 张康 | G144: 孙圩子镇 | H144: 程蒋山村 | I144: 否 | J144: 扶持70户脱贫户（含监测对象）发展特色种养业 | K144: 2023年12月15日前 | L144: =M144+N144 -> 10.5 | M144: 10.5 | O144: 扶持70户脱贫户发展特色种养业，鼓励其扩大种养殖规模。 | P144: 养羊300只；种植胡萝卜作物83亩； | Q144: 100% | R144: 100% | S144: / | T144: 25.48 | U144: / | V144: / | W144: 70 | X144: 280 | AA144: ≥95% | AB144: 参与项目申报、实施过程监督、完成后受益 | AC144: 以产业补助的形式对脱贫户进行补助，鼓励发展特色产业，激发脱贫人口内生动力，扩大种养殖规模，增加脱贫户收入
A145: 151 | B145: 生产项目（种植/养殖业） | C145: 2023年孙圩子镇丁楼村特色种养殖补贴到户项目 | D145: 新建 | E145: 县农业农村局 | F145: 孙圩子镇 张康 | G145: 孙圩子镇 | H145: 丁楼村 | I145: 否 | J145: 扶持50户脱贫户（含监测对象）发展特色种养业 | K145: 2023年12月15日前 | L145: 7.5 | M145: 7.5 | O145: 扶持50户脱贫户发展特色种养业，鼓励其扩大种养殖规模。 | P145: 种植胡萝卜作物74亩；养殖山羊120只 | Q145: 100% | R145: 100% | S145: / | T145: 20 | U145: / | V145: / | W145: 50 | X145: 101 | AA145: ≥95% | AB145: 参与项目申报、实施过程监督、完成后受益 | AC145: 以产业补助的形式对脱贫户进行补助，鼓励发展特色产业，激发脱贫人口内生动力，扩大种养殖规模，增加脱贫户收入
A146: 152 | B146: 生产项目（种植/养殖业） | C146: 2023年孙圩子镇港河村村特色种养殖补贴到户项目 | D146: 新建 | E146: 县农业农村局 | F146: 孙圩子镇 张康 | G146: 孙圩子镇 | H146: 港河村 | I146: 是 | J146: 扶持59户脱贫户（含监测对象）发展特色种养业 | K146: 2023年12月15日前 | L146: 8.85 | M146: 8.85 | O146: 扶持59户脱贫户发展特色种养业，鼓励其扩大种养殖规模。 | P146: 357只羊、81只猪、胡萝卜20亩、蔬菜2亩 | Q146: 100% | R146: 100% | S146: / | T146: / | U146: / | V146: / | W146: 59 | X146: 180 | AA146: ≥95% | AB146: 参与项目申报、实施过程监督、完成后受益 | AC146: 以产业补助的形式对脱贫户进行补助，鼓励发展特色产业，激发脱贫人口内生动力，扩大种养殖规模，增加脱贫户收入
A147: 153 | B147: 生产项目（种植/养殖业） | C147: 2023年孙圩子镇侯楼村特色种养殖补贴到户项目 | D147: 新建 | E147: 县农业农村局 | F147: 孙圩子镇 张康 | G147: 孙圩子镇 | H147: 侯楼村 | I147: 否 | J147: 扶持70户脱贫户（含监测对象）发展特色种养业 | K147: 2023年12月15日前 | L147: 10.5 | M147: 10.5 | O147: 扶持70户脱贫户发展特色种养业，鼓励其扩大种养殖规模。 | P147: 养羊385只；种植胡萝卜作物25亩； | Q147: 100% | R147: 100% | T147: / | U147: / | V147: / | W147: 70 | X147: 165 | AA147: ≥95% | AB147: 参与项目申报、实施过程监督、完成后受益 | AC147: 以产业补助的形式对脱贫户进行补助，鼓励发展特色产业，激发脱贫人口内生动力，扩大种养殖规模，增加脱贫户收入
A148: 154 | B148: 生产项目（种植/养殖业） | C148: 2023年孙圩子镇马庄村特色种养殖补贴到户项目 | D148: 新建 | E148: 县农业农村局 | F148: 孙圩子镇 张康 | G148: 孙圩子镇 | H148: 马庄村 | I148: 是 | J148: 扶持60户脱贫户（含监测对象）发展特色种养业 | K148: 2023年12月15日前 | L148: 9 | M148: 9 | O148: 扶持60户脱贫户发展特色种养业，鼓励其扩大种养殖规模。 | P148: 养羊180只；种植胡萝卜作物90亩； | Q148: 100% | R148: 100% | S148: / | T148: / | U148: / | V148: / | W148: 60 | X148: 180 | AA148: ≥95% | AB148: 参与项目申报、实施过程监督、完成后受益 | AC148: 以产业补助的形式对脱贫户进行补助，鼓励发展特色产业，激发脱贫人口内生动力，扩大种养殖规模，增加脱贫户收入
A149: 155 | B149: 生产项目（种植/养殖业） | C149: 2023年孙圩子镇孙圩子村特色种养殖补贴到户项目 | D149: 新建 | E149: 县农业农村局 | F149: 孙圩子镇 张康 | G149: 孙圩子镇 | H149: 孙圩子村 | I149: 否 | J149: 村扶持100户脱贫户（含监测对象）发展特色种养业 | K149: 2023年12月15日前 | L149: 15 | M149: 15 | O149: 扶持100户脱贫户发展特色种养业，鼓励其扩大种养殖规模。 | P149: 养羊350只；种植胡萝卜作物125亩； | Q149: 100% | R149: 100% | S149: / | T149: 29 | U149: / | V149: / | W149: 100 | X149: 210 | AA149: ≥95% | AB149: 参与项目申报、实施过程监督、完成后受益 | AC149: 以产业补助的形式对脱贫户进行补助，鼓励发展特色产业，激发脱贫人口内生动力，扩大种养殖规模，增加脱贫户收入
A150: 156 | B150: 生产项目（种植/养殖业） | C150: 2023年孙圩子镇王庄村特色种养殖补贴到户项目 | D150: 新建 | E150: 县农业农村局 | F150: 孙圩子镇 张康 | G150: 孙圩子镇 | H150: 王庄村 | I150: 否 | J150: 扶持50户脱贫户（含监测对象）发展特色种养业 | K150: 2023年12月15日前 | L150: 7.5 | M150: 7.5 | O150: 扶持50户脱贫户发展特色种养业，鼓励其扩大种养殖规模。 | P150: 养羊100只；种植胡萝卜作物80亩 | Q150: 100% | R150: 100% | S150: / | T150: 20 | U150: / | V150: / | W150: 50 | X150: 140 | AA150: ≥95% | AB150: 参与项目申报、实施过程监督、完成后受益 | AC150: 以产业补助的形式对脱贫户进行补助，鼓励发展特色产业，激发脱贫人口内生动力，扩大种养殖规模，增加脱贫户收入
A151: 133 | B151: 生产项目（种植/养殖业） | C151: 2023年孙圩子镇徐里村特色种养殖补贴到户项目 | D151: 新建 | E151: 县农业农村局 | F151: 孙圩子镇 张康 | G151: 孙圩子镇 | H151: 徐里村 | I151: 否 | J151: 扶持20户脱贫户（含监测对象）发展特色种养业 | K151: 2023年12月15日前 | L151: 3 | M151: 3 | O151: 扶持20户脱贫户发展特色种养业，鼓励其扩大种养殖规模。 | P151: 羊养殖数量120只。 | Q151: 100% | R151: 100% | S151: / | T151: 5.97 | U151: / | V151: / | W151: 20 | X151: 70 | AA151: ≥95% | AB151: 参与项目申报、实施过程监督、完成后受益 | AC151: 以产业补助的形式对脱贫户进行补助，鼓励发展特色产业，激发脱贫人口内生动力，扩大种养殖规模，增加脱贫户收入
A152: 134 | B152: 生产项目（种植/养殖业） | C152: 2023年孙圩子镇徐双楼村特色种养殖补贴到户项目 | D152: 新建 | E152: 县农业农村局 | F152: 孙圩子镇 张康 | G152: 孙圩子镇 | H152: 徐双楼村 | I152: 否 | J152: 扶持57户脱贫户（含监测对象）发展特色种养业 | K152: 2023年12月15日前 | L152: 8.55 | M152: 8.55 | O152: 扶持57户脱贫户发展特色种养业，鼓励其扩大种养殖规模。 | P152: 养羊568只；种植胡萝卜作物3.5亩； | Q152: 100% | R152: 100% | S152: / | T152: 21 | U152: / | V152: / | W152: 57 | X152: 139 | AA152: ≥95% | AB152: 参与项目申报、实施过程监督、完成后受益 | AC152: 以产业补助的形式对脱贫户进行补助，鼓励发展特色产业，激发脱贫人口内生动力，扩大种养殖规模，增加脱贫户收入
A153: 135 | B153: 生产项目（种植/养殖业） | C153: 2023年孙圩子镇周圩子村特色种养殖补贴到户项目 | D153: 新建 | E153: 县农业农村局 | F153: 孙圩子镇 张康 | G153: 孙圩子镇 | H153: 周圩村 | I153: 是 | J153: 扶持35户脱贫户（含监测对象）发展特色种养业 | K153: 2023年12月15日前 | L153: 5.25 | M153: 5.25 | O153: 扶持35户脱贫户发展特色种养业，鼓励其扩大种养殖规模。 | P153: 胡萝卜种植50亩，养羊200只 | Q153: 100% | R153: 100% | S153: / | T153: 9.8 | U153: / | V153: / | W153: 35 | X153: 78 | AA153: ≥95% | AB153: 参与项目申报、实施过程监督、完成后受益 | AC153: 以产业补助的形式对脱贫户进行补助，鼓励发展特色产业，激发脱贫人口内生动力，扩大种养殖规模，增加脱贫户收入
A154: 136 | B154: 生产项目（种植/养殖业） | C154: 2023年王寨镇郝洼村特色种养殖补贴到户项目 | D154: 新建 | E154: 县农业农村局 | F154: 王寨镇 王亚华 | G154: 王寨镇 | H154: 郝洼村 | I154: 是 | J154: 扶持42户脱贫户（含监测对象）发展特色种养业 | K154: 2023年12月15日前 | L154: 6.3 | M154: 6.3 | O154: 扶持42户脱贫户发展特色种养业，鼓励其扩大种养殖规模。 | P154: 蔬菜种植面积20亩，猪养殖数量30头，羊养殖数量210只， | Q154: 100% | R154: 100% | S154: / | T154: 21 | U154: / | V154: / | W154: 42 | X154: 113 | AA154: ≥95% | AB154: 参与项目申报、实施过程监督、完成后受益 | AC154: 以产业补助的形式对脱贫户进行补助，鼓励发展特色产业，激发脱贫人口内生动力，扩大种养殖规模，增加脱贫户收入
A155: 137 | B155: 生产项目（种植/养殖业） | C155: 2023年王寨镇后洼村特色种养殖补贴到户项目 | D155: 新建 | E155: 县农业农村局 | F155: 王寨镇 王亚华 | G155: 王寨镇 | H155: 后洼村 | I155: 否 | J155: 扶持30户脱贫户（含监测对象）发展特色种养业 | K155: 2023年12月15日前 | L155: 4.5 | M155: 4.5 | O155: 扶持30户脱贫户发展特色种养业，鼓励其扩大种养殖规模。 | P155: 瓜果种植面积10亩，猪养殖数量30头，羊养殖数量120只， | Q155: 100% | R155: 100% | T155: 13 | U155: / | V155: / | W155: 30 | X155: 77 | AA155: ≥95% | AB155: 参与项目申报、实施过程监督、完成后受益 | AC155: 以产业补助的形式对脱贫户进行补助，鼓励发展特色产业，激发脱贫人口内生动力，扩大种养殖规模，增加脱贫户收入
A156: 138 | B156: 生产项目（种植/养殖业） | C156: 2023年王寨镇王集村特色种养殖补贴到户项目 | D156: 新建 | E156: 县农业农村局 | F156: 王寨镇 王亚华 | G156: 王寨镇 | H156: 王集村 | I156: 否 | J156: 扶持24户脱贫户（含监测对象）发展特色种养业 | K156: 2023年12月15日前 | L156: 3.6 | M156: 3.6 | O156: 扶持24户脱贫户发展特色种养业，鼓励其扩大种养殖规模。 | P156: 瓜果种植面积12亩，猪养殖数量30头，羊养殖数量180只， | Q156: 100% | R156: 100% | S156: / | T156: 9 | U156: / | V156: / | W156: 24 | X156: 65 | AA156: ≥95% | AB156: 参与项目申报、实施过程监督、完成后受益 | AC156: 以产业补助的形式对脱贫户进行补助，鼓励发展特色产业，激发脱贫人口内生动力，扩大种养殖规模，增加脱贫户收入
A157: 139 | B157: 生产项目（种植/养殖业） | C157: 2023年王寨镇杨集村特色种养业奖补到户 | D157: 新建 | E157: 县农业农村局 | F157: 王寨镇 王亚华 | G157: 王寨镇 | H157: 杨集村 | I157: 否 | J157: 扶持55户脱贫户（含监测对象）发展特色种养业 | K157: 2023年12月15日前 | L157: 8.25 | M157: 8.25 | O157: 扶持55户脱贫户发展特色种养业，鼓励其扩大种养殖规模。 | P157: 猪养殖数量5头，羊养殖数量120只， | Q157: 100% | R157: 100% | S157: / | T157: 17 | U157: / | V157: / | W157: 55 | X157: 116 | AA157: ≥95% | AB157: 参与项目申报、实施过程监督、完成后受益 | AC157: 以产业补助的形式对脱贫户进行补助，鼓励发展特色产业，激发脱贫人口内生动力，扩大种养殖规模，增加脱贫户收入
A158: 140 | B158: 生产项目（种植/养殖业） | C158: 2023年王寨苏庄村特色种养殖补贴到户项目 | D158: 新建 | E158: 县农业农村局 | F158: 王寨镇 王亚华 | G158: 王寨镇 | H158: 苏庄村 | I158: 是 | J158: 扶持40户脱贫户（含监测对象）发展特色种养业 | K158: 2023年12月15日前 | L158: 6 | M158: 6 | O158: 扶持40户脱贫户发展特色种养业，鼓励其扩大种养殖规模。 | P158: 瓜果种植面积35亩，猪养殖数量28头，羊养殖数量320只， | Q158: 100% | R158: 100% | S158: / | T158: 19 | U158: / | V158: / | W158: 40 | X158: 94 | AA158: ≥95% | AB158: 参与项目申报、实施过程监督、完成后受益 | AC158: 以产业补助的形式对脱贫户进行补助，鼓励发展特色产业，激发脱贫人口内生动力，扩大种养殖规模，增加脱贫户收入
A159: 141 | B159: 生产项目（种植/养殖业） | C159: 2023年王寨镇吴丛村特色种养殖补贴到户项目 | D159: 新建 | E159: 县农业农村局 | F159: 王寨镇 王亚华 | G159: 王寨镇 | H159: 吴丛村 | I159: 否 | J159: 扶持40户脱贫户（含监测对象）发展特色种养业 | K159: 2023年12月15日前 | L159: 6 | M159: 6 | O159: 扶持40户脱贫户发展特色种养业，鼓励其扩大种养殖规模。 | P159: 特色种植面积10亩，羊养殖数量120只， | Q159: 100% | R159: 100% | S159: / | T159: 19 | U159: / | V159: / | W159: 40 | X159: 96 | AA159: ≥95% | AB159: 参与项目申报、实施过程监督、完成后受益 | AC159: 以产业补助的形式对脱贫户进行补助，鼓励发展特色产业，激发脱贫人口内生动力，扩大种养殖规模，增加脱贫户收入
A160: 142 | B160: 生产项目（种植/养殖业） | C160: 2023年王寨镇三座楼村特色种养业奖补到户 | D160: 新建 | E160: 县农业农村局 | F160: 王寨镇 王亚华 | G160: 王寨镇 | H160: 三座楼村 | I160: 否 | J160: 扶持30户脱贫户（含监测对象）发展特色种养业 | K160: 2023年12月15日前 | L160: 4.5 | M160: 4.5 | O160: 扶持30户脱贫户发展特色种养业，鼓励其扩大种养殖规模。 | P160: 羊养殖数量84只， | Q160: 100% | R160: 100% | S160: / | T160: 15 | U160: / | V160: / | W160: 30 | X160: 79 | AA160: ≥95% | AB160: 参与项目申报、实施过程监督、完成后受益 | AC160: 以产业补助的形式对脱贫户进行补助，鼓励发展特色产业，激发脱贫人口内生动力，扩大种养殖规模，增加脱贫户收入
A161: 143 | B161: 生产项目（种植/养殖业） | C161: 2023年王寨镇张楼村特色种养业奖补到户 | D161: 新建 | E161: 县农业农村局 | F161: 王寨镇 王亚华 | G161: 王寨镇 | H161: 张楼村 | I161: 否 | J161: 扶持38户脱贫户（含监测对象）发展特色种养业 | K161: 2023年12月15日前 | L161: 5.7 | M161: 5.7 | O161: 扶持38户脱贫户发展特色种养业，鼓励其扩大种养殖规模。 | P161: 猪养殖数量10头，羊养殖数量220只， | Q161: 100% | R161: 100% | S161: / | T161: 17 | U161: / | V161: / | W161: 38 | X161: 85 | AA161: ≥95% | AB161: 参与项目申报、实施过程监督、完成后受益 | AC161: 以产业补助的形式对脱贫户进行补助，鼓励发展特色产业，激发脱贫人口内生动力，扩大种养殖规模，增加脱贫户收入
A162: 144 | B162: 生产项目（种植/养殖业） | C162: 2023年王寨镇王寨社区特色种养殖补贴到户项目 | D162: 新建 | E162: 县农业农村局 | F162: 王寨镇 王亚华 | G162: 王寨镇 | H162: 王寨社区 | I162: 否 | J162: 扶持30户脱贫户（含监测对象）发展特色种养业 | K162: 2023年12月15日前 | L162: 4.5 | M162: 4.5 | O162: 扶持30户脱贫户发展特色种养业，鼓励其扩大种养殖规模。 | P162: 羊养殖数量260只 | Q162: 100% | R162: 100% | T162: 15 | U162: / | V162: / | W162: 30 | X162: 79 | AA162: ≥95% | AB162: 参与项目申报、实施过程监督、完成后受益 | AC162: 以产业补助的形式对脱贫户进行补助，鼓励发展特色产业，激发脱贫人口内生动力，扩大种养殖规模，增加脱贫户收入
A163: 145 | B163: 生产项目（种植/养殖业） | C163: 2023年王寨镇戴柿元村特色种养殖补贴到户项目 | D163: 新建 | E163: 县农业农村局 | F163: 王寨镇 王亚华 | G163: 王寨镇 | H163: 戴柿元村 | I163: 是 | J163: 扶持30户脱贫户（含监测对象）发展特色种养业 | K163: 2023年12月15日前 | L163: 4.5 | M163: 4.5 | O163: 扶持30户脱贫户发展特色种养业，鼓励其扩大种养殖规模。 | P163: 瓜果种植面积5亩，猪养殖数量10头，羊养殖数量130只， | Q163: 100% | R163: 100% | S163: / | T163: 15 | U163: / | V163: / | W163: 30 | X163: 87 | AA163: ≥95% | AB163: 参与项目申报、实施过程监督、完成后受益 | AC163: 以产业补助的形式对脱贫户进行补助，鼓励发展特色产业，激发脱贫人口内生动力，扩大种养殖规模，增加脱贫户收入
A164: 146 | B164: 生产项目（种植/养殖业） | C164: 2023年王寨镇李楼村特色种养业奖补到户 | D164: 新建 | E164: 县农业农村局 | F164: 王寨镇 王亚华 | G164: 王寨镇 | H164: 李楼村 | I164: 否 | J164: 扶持30户脱贫户（含监测对象）发展特色种养业 | K164: 2023年12月15日前 | L164: 4.5 | M164: 4.5 | O164: 扶持30户脱贫户发展特色种养业，鼓励其扩大种养殖规模。 | P164: 猪养殖数量6头，羊养殖数量130只， | Q164: 100% | R164: 100% | S164: / | T164: 15 | U164: / | V164: / | W164: 30 | X164: 98 | AA164: ≥95% | AB164: 参与项目申报、实施过程监督、完成后受益 | AC164: 以产业补助的形式对脱贫户进行补助，鼓励发展特色产业，激发脱贫人口内生动力，扩大种养殖规模，增加脱贫户收入
A165: 157 | B165: 生产项目（种植/养殖业） | C165: 2023年王寨镇大演武村特色种养殖补贴到户项目 | D165: 新建 | E165: 县农业农村局 | F165: 王寨镇 王亚华 | G165: 王寨镇 | H165: 大演武村 | I165: 否 | J165: 扶持40户脱贫户（含监测对象）发展特色种养业 | K165: 2023年12月15日前 | L165: 6 | M165: 6 | O165: 扶持40户脱贫户发展特色种养业，鼓励其扩大种养殖规模。 | P165: 猪养殖数量5头，羊养殖数量180只 | Q165: 100% | R165: 100% | S165: / | T165: 18 | U165: / | V165: / | W165: 40 | X165: 87 | AA165: ≥95% | AB165: 参与项目申报、实施过程监督、完成后受益 | AC165: 以产业补助的形式对脱贫户进行补助，鼓励发展特色产业，激发脱贫人口内生动力，扩大种养殖规模，增加脱贫户收入
A166: 158 | B166: 生产项目（种植/养殖业） | C166: 2023年王寨镇吴河涯村特色种养殖补贴到户项目 | D166: 新建 | E166: 县农业农村局 | F166: 王寨镇 王亚华 | G166: 王寨镇 | H166: 吴河涯村 | I166: 是 | J166: 扶持50户脱贫户（含监测对象）发展特色种养业 | K166: 2023年12月15日前 | L166: 7.5 | M166: 7.5 | O166: 扶持50户脱贫户发展特色种养业，鼓励其扩大种养殖规模。 | P166: 瓜果蔬菜种植面积58.5亩，苗木花卉面积9.6亩，经济作物种植面积30亩，猪养殖数量42头，羊养殖数量236只 | Q166: 100% | R166: 100% | S166: / | T166: 23 | U166: / | V166: / | W166: 50 | X166: 101 | AA166: ≥95% | AB166: 参与项目申报、实施过程监督、完成后受益 | AC166: 以产业补助的形式对脱贫户进行补助，鼓励发展特色产业，激发脱贫人口内生动力，扩大种养殖规模，增加脱贫户收入
A167: 159 | B167: 生产项目（种植/养殖业） | C167: 2023年王寨镇齐庄村特色种养殖补贴到户项目 | D167: 新建 | E167: 县农业农村局 | F167: 王寨镇 王亚华 | G167: 王寨镇 | H167: 齐庄村 | I167: 否 | J167: 扶持50户脱贫户（含监测对象）发展特色种养业 | K167: 2023年12月15日前 | L167: 7.5 | M167: 7.5 | O167: 扶持50户脱贫户发展特色种养业，鼓励其扩大种养殖规模。 | P167: 瓜果种植面积15亩，猪养殖数量10头，羊养殖数量217只， | Q167: 100% | R167: 100% | S167: / | T167: 23 | U167: / | V167: / | W167: 50 | X167: 96 | AA167: ≥95% | AB167: 参与项目申报、实施过程监督、完成后受益 | AC167: 以产业补助的形式对脱贫户进行补助，鼓励发展特色产业，激发脱贫人口内生动力，扩大种养殖规模，增加脱贫户收入
A168: 160 | B168: 生产项目（种植/养殖业） | C168: 2023年新庄镇常庄村特色种养殖补贴到户项目 | D168: 新建 | E168: 县农业农村局 | F168: 新庄镇 杨宜成 | G168: 新庄镇 | H168: 常庄村 | I168: 是 | J168: 扶持191户脱贫户（含监测对象）发展特色种养业 | K168: 2023年12月15日前 | L168: 15.08 | M168: 15.08 | O168: 扶持191户脱贫户发展特色种养业，鼓励其扩大种养殖规模。 | P168: 瓜果蔬菜种植面积365亩，羊养殖数量40只 | Q168: 100% | R168: 100% | S168: / | T168: 24 | U168: / | V168: / | W168: 191 | X168: 370 | AA168: ≥95% | AB168: 参与项目申报、实施过程监督、完成后受益 | AC168: 以产业补助的形式对脱贫户进行补助，鼓励发展特色产业，激发脱贫人口内生动力，扩大种养殖规模，增加脱贫户收入
A169: 161 | B169: 生产项目（种植/养殖业） | C169: 2023年新庄镇东阁村特色种养殖补贴到户项目 | D169: 新建 | E169: 县农业农村局 | F169: 新庄镇 杨宜成 | G169: 新庄镇 | H169: 东阁村 | I169: 否 | J169: 扶持260户脱贫户（含监测对象）发展特色种养业 | K169: 2023年12月15日前 | L169: 27.958 | M169: 27.958 | O169: 扶持260户脱贫户发展特色种养业，鼓励其扩大种养殖规模。 | P169: 瓜果蔬菜种植面积689.5亩，羊养殖数量56只 | Q169: 100% | R169: 100% | S169: / | T169: 44 | U169: / | V169: / | W169: 260 | X169: 577 | AA169: ≥95% | AB169: 参与项目申报、实施过程监督、完成后受益 | AC169: 以产业补助的形式对脱贫户进行补助，鼓励发展特色产业，激发脱贫人口内生动力，扩大种养殖规模，增加脱贫户收入
A170: 162 | B170: 生产项目（种植/养殖业） | C170: 2023年新庄镇杜集村特色种养殖补贴到户项目 | D170: 新建 | E170: 县农业农村局 | F170: 新庄镇 杨宜成 | G170: 新庄镇 | H170: 杜集村 | I170: 否 | J170: 扶持133户脱贫户（含监测对象）发展特色种养业 | K170: 2023年12月15日前 | L170: 17.463 | M170: 17.463 | O170: 扶持133户脱贫户发展特色种养业，鼓励其扩大种养殖规模。 | P170: 瓜果蔬菜种植面积217.9亩，羊养殖数量268只，猪养殖数量65头，家禽养殖数量300只，林业特色产业2亩 | Q170: 100% | R170: 100% | S170: / | T170: 30 | U170: / | V170: / | W170: 133 | X170: 312 | AA170: ≥95% | AB170: 参与项目申报、实施过程监督、完成后受益 | AC170: 以产业补助的形式对脱贫户进行补助，鼓励发展特色产业，激发脱贫人口内生动力，扩大种养殖规模，增加脱贫户收入
A171: 163 | B171: 生产项目（种植/养殖业） | C171: 2023年新庄镇郭套村特色种养殖补贴到户项目 | D171: 新建 | E171: 县农业农村局 | F171: 新庄镇 杨宜成 | G171: 新庄镇 | H171: 郭套村 | I171: 否 | J171: 扶持85户脱贫户（含监测对象）发展特色种养业 | K171: 2023年12月15日前 | L171: 9.2945 | M171: 9.2945 | O171: 扶持85户脱贫户发展特色种养业，鼓励其扩大种养殖规模。 | P171: 瓜果蔬菜种植面积83.1亩，羊养殖数量261只，猪养殖数量67头，木本油料种植面积2.8亩，中药材种植面积4亩，水产养殖31亩，其他特色农业产业种植15.2亩 | Q171: 100% | R171: 100% | S171: / | T171: 14 | U171: / | V171: / | W171: 85 | X171: 184 | AA171: ≥95% | AB171: 参与项目申报、实施过程监督、完成后受益 | AC171: 以产业补助的形式对脱贫户进行补助，鼓励发展特色产业，激发脱贫人口内生动力，扩大种养殖规模，增加脱贫户收入
A172: 164 | B172: 生产项目（种植/养殖业） | C172: 2023年新庄镇居委会村特色种养殖补贴到户项目 | D172: 新建 | E172: 县农业农村局 | F172: 新庄镇 杨宜成 | G172: 新庄镇 | H172: 居委会村 | I172: 否 | J172: 扶持27户脱贫户（含监测对象）发展特色种养业 | K172: 2023年12月15日前 | L172: 3.434 | M172: 3.434 | O172: 扶持27户脱贫户发展特色种养业，鼓励其扩大种养殖规模。 | P172: 瓜果蔬菜种植面积19.6亩，家禽养殖数量150只，羊养殖数量96只，猪养殖数量58头，驴养殖数量3头 | Q172: 100% | R172: 100% | S172: / | T172: 5 | U172: / | V172: / | W172: 27 | X172: 63 | AA172: ≥95% | AB172: 参与项目申报、实施过程监督、完成后受益 | AC172: 以产业补助的形式对脱贫户进行补助，鼓励发展特色产业，激发脱贫人口内生动力，扩大种养殖规模，增加脱贫户收入
A173: 165 | B173: 生产项目（种植/养殖业） | C173: 2023年新庄镇李庄村特色种养殖补贴到户项目 | D173: 新建 | E173: 县农业农村局 | F173: 新庄镇 杨宜成 | G173: 新庄镇 | H173: 李庄村 | I173: 否 | J173: 扶持33户脱贫户（含监测对象）发展特色种养业 | K173: 2023年12月15日前 | L173: 4.32 | M173: 4.32 | O173: 扶持33户脱贫户发展特色种养业，鼓励其扩大种养殖规模。 | P173: 瓜果蔬菜种植面积18亩，羊养殖数量184只，猪养殖数量38头 | Q173: 100% | R173: 100% | S173: / | T173: 7 | U173: / | V173: / | W173: 33 | X173: 88 | AA173: ≥95% | AB173: 参与项目申报、实施过程监督、完成后受益 | AC173: 以产业补助的形式对脱贫户进行补助，鼓励发展特色产业，激发脱贫人口内生动力，扩大种养殖规模，增加脱贫户收入
A174: 166 | B174: 生产项目（种植/养殖业） | C174: 2023年新庄镇马郑庄村特色种养殖补贴到户项目 | D174: 新建 | E174: 县农业农村局 | F174: 新庄镇 杨宜成 | G174: 新庄镇 | H174: 马郑庄村 | I174: 否 | J174: 扶持104户脱贫户（含监测对象）发展特色种养业 | K174: 2023年12月15日前 | L174: 13.3515 | M174: 13.3515 | O174: 扶持104户脱贫户发展特色种养业，鼓励其扩大种养殖规模。 | P174: 瓜果蔬菜种植面积213.1亩，羊养殖数量141只，猪养殖数量38头 | Q174: 100% | R174: 100% | S174: / | T174: 21 | U174: / | V174: / | W174: 104 | X174: 251 | AA174: ≥95% | AB174: 参与项目申报、实施过程监督、完成后受益 | AC174: 以产业补助的形式对脱贫户进行补助，鼓励发展特色产业，激发脱贫人口内生动力，扩大种养殖规模，增加脱贫户收入
A175: 167 | B175: 生产项目（种植/养殖业） | C175: 2023年新庄镇邵套村特色种养殖补贴到户项目 | D175: 新建 | E175: 县农业农村局 | F175: 新庄镇 杨宜成 | G175: 新庄镇 | H175: 邵套村 | I175: 否 | J175: 扶持142户脱贫户（含监测对象）发展特色种养业 | K175: 2023年12月15日前 | L175: 13.88 | M175: 13.88 | O175: 扶持142户脱贫户发展特色种养业，鼓励其扩大种养殖规模。 | P175: 瓜果蔬菜种植面积332亩，羊养殖数量70只，猪养殖数量6头 | Q175: 100% | R175: 100% | S175: / | T175: 22 | U175: / | V175: / | W175: 142 | X175: 338 | AA175: ≥95% | AB175: 参与项目申报、实施过程监督、完成后受益 | AC175: 以产业补助的形式对脱贫户进行补助，鼓励发展特色产业，激发脱贫人口内生动力，扩大种养殖规模，增加脱贫户收入
A176: 168 | B176: 生产项目（种植/养殖业） | C176: 2023年新庄镇铁佛村特色种养殖补贴到户项目 | D176: 新建 | E176: 县农业农村局 | F176: 新庄镇 杨宜成 | G176: 新庄镇 | H176: 铁佛村 | I176: 否 | J176: 扶持30户脱贫户（含监测对象）发展特色种养业 | K176: 2023年12月15日前 | L176: 3.28 | M176: 3.28 | O176: 扶持30户脱贫户发展特色种养业，鼓励其扩大种养殖规模。 | P176: 瓜果蔬菜种植面积38亩，羊养殖数量88只，猪养殖数量30头 | Q176: 100% | R176: 100% | S176: / | T176: 5 | U176: / | V176: / | W176: 30 | X176: 80 | AA176: ≥95% | AB176: 参与项目申报、实施过程监督、完成后受益 | AC176: 以产业补助的形式对脱贫户进行补助，鼓励发展特色产业，激发脱贫人口内生动力，扩大种养殖规模，增加脱贫户收入
A177: 169 | B177: 生产项目（种植/养殖业） | C177: 2023年新庄镇西阁村特色种养殖补贴到户项目 | D177: 新建 | E177: 县农业农村局 | F177: 新庄镇 杨宜成 | G177: 新庄镇 | H177: 西阁村 | I177: 否 | J177: 扶持90户脱贫户（含监测对象）发展特色种养业 | K177: 2023年12月15日前 | L177: 10.998 | M177: 10.998 | O177: 扶持90户脱贫户发展特色种养业，鼓励其扩大种养殖规模。 | P177: 瓜果蔬菜种植面积266.7亩，羊养殖数量56只 | Q177: 100% | R177: 100% | S177: / | T177: 17 | U177: / | V177: / | W177: 90 | X177: 234 | AA177: ≥95% | AB177: 参与项目申报、实施过程监督、完成后受益 | AC177: 以产业补助的形式对脱贫户进行补助，鼓励发展特色产业，激发脱贫人口内生动力，扩大种养殖规模，增加脱贫户收入
A178: 170 | B178: 生产项目（种植/养殖业） | C178: 2023年新庄镇小集子村特色种养殖补贴到户项目 | D178: 新建 | E178: 县农业农村局 | F178: 新庄镇 杨宜成 | G178: 新庄镇 | H178: 小集子村 | I178: 是 | J178: 扶持55户脱贫户（含监测对象）发展特色种养业 | K178: 2023年12月15日前 | L178: 6.141 | M178: 6.141 | O178: 扶持55户脱贫户发展特色种养业，鼓励其扩大种养殖规模。 | P178: 瓜果蔬菜种植面积54.4亩，家禽养殖数量300只，羊养殖数量193只，猪养殖数量16头，水产养殖20.5亩，其他特色农业产业养殖150只，其他特色农业产业种植2亩 | Q178: 100% | R178: 100% | S178: / | T178: 9 | U178: / | V178: / | W178: 55 | X178: 143 | AA178: ≥95% | AB178: 参与项目申报、实施过程监督、完成后受益 | AC178: 以产业补助的形式对脱贫户进行补助，鼓励发展特色产业，激发脱贫人口内生动力，扩大种养殖规模，增加脱贫户收入
A179: 171 | B179: 生产项目（种植/养殖业） | C179: 2023年新庄镇小桥村特色种养殖补贴到户项目 | D179: 新建 | E179: 县农业农村局 | F179: 新庄镇 杨宜成 | G179: 新庄镇 | H179: 小桥村 | I179: 是 | J179: 扶持68户脱贫户（含监测对象）发展特色种养业 | K179: 2023年12月15日前 | L179: 8.48 | M179: 8.48 | O179: 扶持68户脱贫户发展特色种养业，鼓励其扩大种养殖规模。 | P179: 瓜果蔬菜种植面积79.4亩，羊养殖数量278只，猪养殖数量21头，牛养殖数量50头 | Q179: 100% | R179: 100% | S179: / | T179: 13 | U179: / | V179: / | W179: 68 | X179: 160 | AA179: ≥95% | AB179: 参与项目申报、实施过程监督、完成后受益 | AC179: 以产业补助的形式对脱贫户进行补助，鼓励发展特色产业，激发脱贫人口内生动力，扩大种养殖规模，增加脱贫户收入
A180: 172 | B180: 生产项目（种植/养殖业） | C180: 2023年新庄镇张庄村特色种养殖补贴到户项目 | D180: 新建 | E180: 县农业农村局 | F180: 新庄镇 杨宜成 | G180: 新庄镇 | H180: 张庄村 | I180: 否 | J180: 扶持130户脱贫户（含监测对象）发展特色种养业 | K180: 2023年12月15日前 | L180: 13.0225 | M180: 13.0225 | O180: 扶持130户脱贫户发展特色种养业，鼓励其扩大种养殖规模。 | P180: 瓜果蔬菜种植面积169.5亩，羊养殖数量295只，猪养殖数量95头 | Q180: 100% | R180: 100% | S180: / | T180: 20 | U180: / | V180: / | W180: 130 | X180: 327 | AA180: ≥95% | AB180: 参与项目申报、实施过程监督、完成后受益 | AC180: 以产业补助的形式对脱贫户进行补助，鼓励发展特色产业，激发脱贫人口内生动力，扩大种养殖规模，增加脱贫户收入
A181: 173 | B181: 生产项目（种植/养殖业） | C181: 2023年闫集镇闫集村特色种养殖补贴到户项目 | D181: 新建 | E181: 县农业农村局 | F181: 闫集镇 赵世成 | G181: 闫集镇 | H181: 闫集村 | I181: 否 | J181: 扶持10户脱贫户发展特色种养业 | K181: 2023年12月15日前 | L181: 1.47 | M181: 1.47 | O181: 扶持10户脱贫户发展特色种养业，鼓励其扩大种养殖规模。 | P181: 养殖羊数量78只 | Q181: 100% | R181: 100% | S181: / | T181: 4.5 | U181: / | V181: / | W181: 10 | X181: 35 | AA181: ≥95% | AB181: 参与项目申报、实施过程监督、完成后受益 | AC181: 以产业补助的形式对脱贫户进行补助，鼓励发展特色产业，激发脱贫人口内生动力，扩大种养殖规模，增加脱贫户收入
A182: 174 | B182: 生产项目（种植/养殖业） | C182: 2023年闫集镇孙老家村特色种养殖补贴到户项目 | D182: 新建 | E182: 县农业农村局 | F182: 闫集镇 赵世成 | G182: 闫集镇 | H182: 孙老家村 | I182: 否 | J182: 扶持37户脱贫户（含监测对象）发展特色种养业 | K182: 2023年12月15日前 | L182: 5.068 | M182: 5.068 | O182: 扶持37户脱贫户发展特色种养业，鼓励其扩大种养殖规模。 | P182: 瓜果蔬菜种植面积15.2亩，羊养殖数量31只，猪养殖数量8头，经济作物种植面积亩 | Q182: 100% | R182: 100% | S182: / | T182: 5.068 | U182: / | V182: / | W182: 37 | X182: 94 | AA182: ≥95% | AB182: 参与项目申报、实施过程监督、完成后受益 | AC182: 以产业补助的形式对脱贫户进行补助，鼓励发展特色产业，激发脱贫人口内生动力，扩大种养殖规模，增加脱贫户收入
A183: 175 | B183: 生产项目（种植/养殖业） | C183: 2023年闫集镇杨庄村特色种养殖补贴到户项目 | D183: 新建 | E183: 县农业农村局 | F183: 闫集镇 赵世成 | G183: 闫集镇 | H183: 杨庄村 | I183: 否 | J183: 扶持28户脱贫户（含监测对象）发展特色种养业 | K183: 2023年12月15日前 | L183: 3.71 | M183: 3.71 | O183: 扶持28户脱贫户发展特色种养业，鼓励其扩大种养殖规模。 | P183: 瓜果蔬菜种植面积3亩，羊养殖数量125只，猪养殖数量36头，经济作物种植面积0亩 | Q183: 100% | R183: 100% | S183: / | T183: 3.71万元 | U183: / | V183: / | W183: 28 | X183: 76 | AA183: ≥95% | AB183: 参与项目申报、实施过程监督、完成后受益 | AC183: 以产业补助的形式对脱贫户进行补助，鼓励发展特色产业，激发脱贫人口内生动力，扩大种养殖规模，增加脱贫户收入
A184: 176 | B184: 生产项目（种植/养殖业） | C184: 2023年闫集镇汪楼村特色种养殖补贴到户项目 | D184: 新建 | E184: 县农业农村局 | F184: 闫集镇 赵世成 | G184: 闫集镇 | H184: 汪楼村 | I184: 否 | J184: 扶持20户脱贫户（含监测对象）发展特色种养业 | K184: 2023年12月15日前 | L184: 3 | M184: 3 | O184: 扶持20户脱贫户发展特色种养业，鼓励其扩大种养殖规模。 | P184: 瓜果蔬菜种植面积8亩，羊养殖数量103只，猪养殖数量8头，鸽子养殖数量300只 | Q184: 100% | R184: 100% | S184: / | T184: 6.2 | U184: / | V184: / | W184: 20 | X184: 60 | AA184: ≥95% | AB184: 参与项目申报、实施过程监督、完成后受益 | AC184: 以产业补助的形式对脱贫户进行补助，鼓励发展特色产业，激发脱贫人口内生动力，扩大种养殖规模，增加脱贫户收入
A185: 177 | B185: 生产项目（种植/养殖业） | C185: 2023年闫集镇郑集村特色种养殖补贴到户项目 | D185: 新建 | E185: 县农业农村局 | F185: 闫集镇 赵世成 | G185: 闫集镇 | H185: 郑集村 | I185: 是 | J185: 扶持74户脱贫户（含监测对象）发展特色种养业 | K185: 2023年12月15日前 | L185: 10.01 | M185: 10.01 | O185: 扶持74户脱贫户发展特色种养业，鼓励其扩大种养殖规模。 | P185: 瓜果蔬菜种植面积20亩，羊养殖数量457只，猪养殖数量214头，鱼养殖20亩 | Q185: 100% | R185: 100% | S185: / | T185: 25 | U185: / | V185: / | W185: 74 | X185: 163 | AA185: ≥95% | AB185: 参与项目申报、实施过程监督、完成后受益 | AC185: 以产业补助的形式对脱贫户进行补助，鼓励发展特色产业，激发脱贫人口内生动力，扩大种养殖规模，增加脱贫户收入
A186: 178 | B186: 生产项目（种植/养殖业） | C186: 2023年闫集镇刘店村特色种养殖补贴到户项目 | D186: 新建 | E186: 县农业农村局 | F186: 闫集镇 赵世成 | G186: 闫集镇 | H186: 刘店村 | I186: 否 | J186: 扶持42户脱贫户（含监测对象）发展特色种养业 | K186: 2023年12月15日前 | L186: 5.23 | M186: 5.23 | O186: 扶持42户脱贫户发展特色种养业，鼓励其扩大种养殖规模。 | P186: 瓜果蔬菜种植面积17亩，羊养殖数量255只，猪养殖数量84头，养鸡500只经济作物种植面积亩 | Q186: 100% | R186: 100% | S186: / | T186: 5.23 | U186: / | V186: / | W186: 42 | X186: 90 | AA186: ≥95% | AB186: 参与项目申报、实施过程监督、完成后受益 | AC186: 以产业补助的形式对脱贫户进行补助，鼓励发展特色产业，激发脱贫人口内生动力，扩大种养殖规模，增加脱贫户收入
A187: 179 | B187: 生产项目（种植/养殖业） | C187: 2023年闫集镇孟楼村特色种养殖补贴到户项目 | D187: 新建 | E187: 县农业农村局 | F187: 闫集镇 赵世成 | G187: 闫集镇 | H187: 孟楼村 | I187: 否 | J187: 扶持41户脱贫户（含监测对象）发展特色种养业 | K187: 2023年12月15日前 | L187: 5.86 | M187: 5.86 | O187: 扶持41户脱贫户发展特色种养业，鼓励其扩大种养殖规模。 | P187: 羊养殖数量265只，猪养殖数量90头，鹅养殖数量800只，桃树约17亩 | Q187: 100% | R187: 100% | S187: / | T187: 6.2 | U187: / | V187: / | W187: 41 | X187: 89 | AA187: ≥95% | AB187: 参与项目申报、实施过程监督、完成后受益 | AC187: 以产业补助的形式对脱贫户进行补助，鼓励发展特色产业，激发脱贫人口内生动力，扩大种养殖规模，增加脱贫户收入
A188: 180 | B188: 生产项目（种植/养殖业） | C188: 2023年闫集镇塘沃涯村特色种养殖补贴到户项目 | D188: 新建 | E188: 县农业农村局 | F188: 闫集镇 赵世成 | G188: 闫集镇 | H188: 塘沃涯村 | I188: 是 | J188: 扶持69户脱贫户（含监测对象）发展特色种养业 | K188: 2023年12月15日前 | L188: 8.2 | M188: 8.2 | O188: 扶持69户脱贫户发展特色种养业，鼓励其扩大种养殖规模。 | P188: 瓜果蔬菜种植面积29亩，羊养殖数量333只，猪养殖数量24头 | Q188: 100% | R188: 100% | S188: / | T188: 10.9 | U188: / | V188: / | W188: 69 | X188: 181 | AA188: ≥95% | AB188: 参与项目申报、实施过程监督、完成后受益 | AC188: 以产业补助的形式对脱贫户进行补助，鼓励发展特色产业，激发脱贫人口内生动力，扩大种养殖规模，增加脱贫户收入
A189: 181 | B189: 生产项目（种植/养殖业） | C189: 2023年闫集镇高楼村特色种养殖补贴到户项目 | D189: 新建 | E189: 县农业农村局 | F189: 闫集镇 赵世成 | G189: 闫集镇 | H189: 高楼村 | I189: 否 | J189: 扶持25户脱贫户发展特色种养业 | K189: 2023年12月15日前 | L189: 3.42 | M189: 3.42 | O189: 扶持25户脱贫户发展特色种养业，鼓励其扩大种养殖规模。 | P189: 养殖羊数量136只，养猪16头，蔬菜大棚2亩，露地大蒜4亩，露地甘蔗2亩，养鸭400羽。 | Q189: 100% | R189: 100% | S189: / | T189: 6.5 | U189: / | V189: / | W189: 25 | X189: 65 | AA189: ≥95% | AB189: 参与项目申报、实施过程监督、完成后受益 | AC189: 以产业补助的形式对脱贫户进行补助，鼓励发展特色产业，激发脱贫人口内生动力，扩大种养殖规模，增加脱贫户收入
A190: 182 | B190: 生产项目（种植/养殖业） | C190: 2023年闫集镇柳园村特色种养殖补贴到户项目 | D190: 新建 | E190: 县农业农村局 | F190: 闫集镇 赵世成 | G190: 闫集镇 | H190: 柳园村 | I190: 是 | J190: 扶持62户脱贫户（含监测对象）发展特色种养业 | K190: 2023年12月15日前 | L190: 8.17 | M190: 8.17 | O190: 扶持62户脱贫户发展特色种养业，鼓励其扩大种养殖规模。 | P190: 养殖羊数量257只，种植桃树90.4亩，种植梨树14.6亩，种芦笋12亩 | Q190: 100% | R190: 100% | S190: / | T190: 18.2 | U190: / | V190: / | W190: 62 | X190: 162 | AA190: ≥95% | AB190: 参与项目申报、实施过程监督、完成后受益 | AC190: 以产业补助的形式对脱贫户进行补助，鼓励发展特色产业，激发脱贫人口内生动力，扩大种养殖规模，增加脱贫户收入
A191: 183 | B191: 生产项目（种植/养殖业） | C191: 2023年闫集镇赵堂村特色种养殖补贴到户项目 | D191: 新建 | E191: 县农业农村局 | F191: 闫集镇 赵世成 | G191: 闫集镇 | H191: 赵堂村 | I191: 是 | J191: 扶持50户脱贫户（含监测对象）发展特色种养业 | K191: 2023年12月15日前 | L191: 7.46 | M191: 7.46 | O191: 扶持50户脱贫户发展特色种养业，鼓励其扩大种养殖规模。 | P191: 瓜果蔬菜种植面积20亩，羊养殖数量32只，猪养殖数量32头。 | Q191: 100% | R191: 100% | S191: / | T191: 13.7 | U191: / | V191: / | W191: 50 | X191: 115 | AA191: ≥95% | AB191: 参与项目申报、实施过程监督、完成后受益 | AC191: 以产业补助的形式对脱贫户进行补助，鼓励发展特色产业，激发脱贫人口内生动力，扩大种养殖规模，增加脱贫户收入
A192: 184 | B192: 生产项目（种植/养殖业） | C192: 2023年杨楼镇冯场村特色种养殖补贴到户项目 | D192: 新建 | E192: 县农业农村局 | F192: 杨楼镇 黄蓓蓓 | G192: 杨楼镇 | H192: 冯场村 | I192: 否 | J192: 扶持78户脱贫户（含监测对象）发展特色种养业 | K192: 2023年12月15日前 | L192: 8.992 | M192: 8.992 | O192: 扶持78户脱贫户发展特色种养业，鼓励其扩大种养殖规模。 | P192: 瓜果蔬菜种植面积66.6亩，羊养殖数量344只，猪养殖数量16头，经济作物种植面积4.2亩 | Q192: 100% | R192: 100% | S192: / | T192: 11.77 | U192: / | V192: / | W192: 78 | X192: 176 | Y192: / | Z192: / | AA192: ≥95% | AB192: 参与项目申报、实施过程监督、完成后受益 | AC192: 以产业补助的形式对脱贫户进行补助，鼓励发展特色产业，激发脱贫人口内生动力，扩大种养殖规模，增加脱贫户收入
A193: 185 | B193: 生产项目（种植/养殖业） | C193: 2023年杨楼镇郜洼村特色种养殖补贴到户项目 | D193: 新建 | E193: 县农业农村局 | F193: 杨楼镇 黄蓓蓓 | G193: 杨楼镇 | H193: 郜洼村 | I193: 是 | J193: 扶持78户脱贫户（含监测对象）发展特色种养业 | K193: 2023年12月15日前 | L193: 9.876 | M193: =L193 -> 9.876 | O193: 扶持78户脱贫户发展特色种养业，鼓励其扩大种养殖规模。 | P193: 瓜果蔬菜种植面积118.7亩，羊养殖数量222只，猪养殖数量28头，经济作物种植面积亩 | Q193: 100% | R193: 100% | S193: / | T193: 12.89 | U193: / | V193: / | W193: 78 | X193: 163 | Y193: / | Z193: / | AA193: ≥95% | AB193: 参与项目申报、实施过程监督、完成后受益 | AC193: 以产业补助的形式对脱贫户进行补助，鼓励发展特色产业，激发脱贫人口内生动力，扩大种养殖规模，增加脱贫户收入
A194: 186 | B194: 生产项目（种植/养殖业） | C194: 2023年杨楼镇郝集社区特色种养殖补贴到户项目 | D194: 新建 | E194: 县农业农村局 | F194: 杨楼镇 黄蓓蓓 | G194: 杨楼镇 | H194: 郝集社区 | I194: 是 | J194: 扶持114户脱贫户（含监测对象）发展特色种养业 | K194: 2023年12月15日前 | L194: 11.718 | M194: 11.718 | O194: 扶持114户脱贫户发展特色种养业，鼓励其扩大种养殖规模。 | P194: 瓜果蔬菜种植面积120.8亩，羊养殖数量374只，猪养殖数量34头，经济作物种植面积亩 | Q194: 100% | R194: 100% | S194: / | T194: 15.5 | U194: / | V194: / | W194: 114 | X194: 224 | Y194: / | Z194: / | AA194: ≥95% | AB194: 参与项目申报、实施过程监督、完成后受益 | AC194: 以产业补助的形式对脱贫户进行补助，鼓励发展特色产业，激发脱贫人口内生动力，扩大种养殖规模，增加脱贫户收入
A195: 187 | B195: 生产项目（种植/养殖业） | C195: 2023年杨楼镇黄庙村特色种养殖补贴到户项目 | D195: 新建 | E195: 县农业农村局 | F195: 杨楼镇 黄蓓蓓 | G195: 杨楼镇 | H195: 黄庙村 | I195: 否 | J195: 扶持21户脱贫户（含监测对象）发展特色种养业 | K195: 2023年12月15日前 | L195: 2.68 | M195: 2.68 | O195: 扶持21户脱贫户发展特色种养业，鼓励其扩大种养殖规模。 | P195: 瓜果蔬菜种植面积19.2亩，羊养殖数量76只，猪养殖数量12头，鹅养殖数量100羽。 | Q195: 100% | R195: 100% | S195: / | T195: 3.536 | U195: / | V195: / | W195: 21 | X195: 66 | Y195: / | Z195: / | AA195: ≥95% | AB195: 参与项目申报、实施过程监督、完成后受益 | AC195: 以产业补助的形式对脱贫户进行补助，鼓励发展特色产业，激发脱贫人口内生动力，扩大种养殖规模，增加脱贫户收入
A196: 188 | B196: 生产项目（种植/养殖业） | C196: 2023年杨楼镇刘庄村特色种养殖补贴到户项目 | D196: 新建 | E196: 县农业农村局 | F196: 杨楼镇 黄蓓蓓 | G196: 杨楼镇 | H196: 刘庄村 | I196: 否 | J196: 扶持66户脱贫户（含监测对象）发展特色种养业 | K196: 2023年12月15日前 | L196: 6.624 | M196: 6.624 | O196: 扶持66户脱贫户发展特色种养业，鼓励其扩大种养殖规模。 | P196: 水果种植面积101.7亩，羊养殖数量124只 | Q196: 100% | R196: 100% | S196: / | T196: 12.636 | U196: / | V196: / | W196: 66 | X196: 134 | Y196: / | Z196: / | AA196: ≥95% | AB196: 参与项目申报、实施过程监督、完成后受益 | AC196: 以产业补助的形式对脱贫户进行补助，鼓励发展特色产业，激发脱贫人口内生动力，扩大种养殖规模，增加脱贫户收入
A197: 189 | B197: 生产项目（种植/养殖业） | C197: 2023年杨楼镇路套村特色种养殖补贴到户项目 | D197: 新建 | E197: 县农业农村局 | F197: 杨楼镇 黄蓓蓓 | G197: 杨楼镇 | H197: 路套村 | I197: 否 | J197: 扶持5户脱贫户（含监测对象）发展特色种养业 | K197: 2023年12月15日前 | L197: 0.75 | M197: 0.75 | O197: 扶持5户脱贫户发展特色种养业，鼓励其扩大种养殖规模。 | P197: 羊养殖数量35只，猪养殖数量11头 | Q197: 100% | R197: 100% | S197: / | T197: 0.975 | U197: / | V197: / | W197: 5 | X197: 10 | Y197: / | Z197: / | AA197: ≥95% | AB197: 参与项目申报、实施过程监督、完成后受益 | AC197: 以产业补助的形式对脱贫户进行补助，鼓励发展特色产业，激发脱贫人口内生动力，扩大种养殖规模，增加脱贫户收入
A198: 190 | B198: 生产项目（种植/养殖业） | C198: 2023年杨楼镇孟庄村特色种养殖补贴到户项目 | D198: 新建 | E198: 县农业农村局 | F198: 杨楼镇 黄蓓蓓 | G198: 杨楼镇 | H198: 孟庄村 | I198: 否 | J198: 扶持106户脱贫户（含监测对象）发展特色种养业 | K198: 2023年12月15日前 | L198: 11.072 | M198: 11.072 | O198: 扶持106户脱贫户发展特色种养业，鼓励其扩大种养殖规模。 | P198: 瓜果蔬菜种植面积142.1亩，羊养殖数量168只，猪养殖数量151头，经济作物种植面积32.1亩鱼塘3亩，养牛3头 | Q198: 100% | R198: 100% | S198: / | T198: 14.89 | U198: / | V198: / | W198: 106 | X198: 248 | Y198: / | Z198: / | AA198: ≥95% | AB198: 参与项目申报、实施过程监督、完成后受益 | AC198: 以产业补助的形式对脱贫户进行补助，鼓励发展特色产业，激发脱贫人口内生动力，扩大种养殖规模，增加脱贫户收入
A199: 191 | B199: 生产项目（种植/养殖业） | C199: 2023年杨楼镇裴庄村特色种养殖补贴到户项目 | D199: 新建 | E199: 县农业农村局 | F199: 杨楼镇 黄蓓蓓 | G199: 杨楼镇 | H199: 裴庄村 | I199: 否 | J199: 扶持93户脱贫户（含监测对象）发展特色种养业 | K199: 2023年12月15日前 | L199: 7.13 | M199: 7.13 | O199: 扶持93户脱贫户发展特色种养业，鼓励其扩大种养殖规模。 | P199: 瓜果蔬菜种植面积142亩，羊养殖数量237只，猪养殖数量72头，经济作物种植面积亩 | Q199: 100% | R199: 100% | S199: / | T199: 10.06 | U199: / | V199: / | W199: 93 | X199: 186 | Y199: / | Z199: / | AA199: ≥95% | AB199: 参与项目申报、实施过程监督、完成后受益 | AC199: 以产业补助的形式对脱贫户进行补助，鼓励发展特色产业，激发脱贫人口内生动力，扩大种养殖规模，增加脱贫户收入
A200: 192 | B200: 生产项目（种植/养殖业） | C200: 2023年杨楼镇孙庄社区特色种养殖补贴到户项目 | D200: 新建 | E200: 县农业农村局 | F200: 杨楼镇 黄蓓蓓 | G200: 杨楼镇 | H200: 孙庄社区 | I200: 否 | J200: 扶持23户脱贫户（含监测对象）发展特色种养业 | K200: 2023年12月15日前 | L200: 2.826 | M200: 2.826 | O200: 扶持23户脱贫户发展特色种养业，鼓励其扩大种养殖规模。 | P200: 瓜果蔬菜种植面20.4亩，羊养殖数量104只。 | Q200: 100% | R200: 100% | S200: / | T200: 3.67 | U200: / | V200: / | W200: 23 | X200: 58 | Y200: / | Z200: / | AA200: ≥95% | AB200: 参与项目申报、实施过程监督、完成后受益 | AC200: 以产业补助的形式对脱贫户进行补助，鼓励发展特色产业，激发脱贫人口内生动力，扩大种养殖规模，增加脱贫户收入
... 430 more rows
